{"text_format":"3","workbook":"xlsx","n_sheets":2,"sheets":["Početak","Godišnji kalendar"],"not_rendered":{"images":4,"defined_names":14},"read":"whole","date_system":"1900"}

{"sheet":"Početak","index":0,"n_rows":7,"n_cols":2,"rows_kept":7}
[null,"OSNOVNI PODACI O OVOM PREDLOŠKU"]
[null,"Koristite ovaj predložak da biste kreirali lični kalendar malog preduzeća za bilo koju godinu."]
[null,"Unesite ime preduzeća i kontakt informacije i dodajte logotip preduzeća."]
[null,"Izaberite godinu i unesite važne datume i prilike."]
[null,"Napomena: "]
[null,"Dodatna uputstva navedena su u koloni A na radnom listu GODIŠNJI KALENDAR. Taj tekst je namerno skriven. Da biste uklonili tekst, izaberite kolonu A, a zatim izaberite stavku „IZBRIŠI“. "]
[null,"Da biste saznali više o tabelama, pritisnite taster SHIFT, a zatim unutar tabele pritisnite taster F10, izaberite opciju „TABELA“, a zatim stavku „ALTERNATIVNI TEKST“."]

{"sheet":"Godišnji kalendar","index":1,"n_rows":55,"n_cols":21,"rows_kept":55,"merged":[[0,2,0,5],[2,2,2,8],[2,10,2,16],[11,2,11,8],[11,10,11,16],[20,2,20,8],[20,10,20,16],[29,2,29,8],[29,10,29,16],[38,2,38,8],[38,10,38,16],[47,2,47,8],[47,10,47,16],[50,20,54,20]]}
["Napravite kalendar za malo preduzeće za bilo koju godinu u ovom radnom listu. Korisna uputstva o tome kako da koristite ovaj radni list nalaze se u ćelijama u ovoj koloni. Izaberite kružni indikator u ćeliji sa desne strane da biste promenili godinu u ćeliju C1. Oznaka „Važni datumi“ se nalazi u ćeliji U1",null,2022,{"$nulls":17},"VAŽNI DATUMI"]
["Savet se nalazi u ćeliji sa desne strane.","Koristite kružni indikator da biste promenili kalendarsku godinu"]
["Kalendar za izabranu godinu nalazi se u ćelijama od C3 do Q55, januarski kalendar u ćelijama od C4 do I10, i februarski kalendar u ćelijama od K4 do Q10. Oznaka za januar je u ćeliju C3 i za februar u ćeliji K3. Unesite važne datume i prilike u ćelijama od U3 do U42",null,"JANUAR",{"$nulls":7},"FEBRUAR",{"$nulls":9},"1. JANUAR"]
["Tabela januarskog kalendara je u ćelijama od C4 do I10 i tabela februarskog kalendara u ćelijama od K4 do Q10. Sledeće uputstvo se nalazi u ćeliji A12.",null,"PON","UT","SR","ČET","PET","SUB","NED",null,"PON","UT","SR","ČET","PET","SUB","NED",{"$nulls":3},"NOVA GODINA"]
[null,null,{"$f":"IF(DAY(JanNed1)=1,\"\",IF(AND(YEAR(JanNed1+1)=KalendarskaGodina,MONTH(JanNed1+1)=1),JanNed1+1,\"\"))","v":""},{"$f":"IF(DAY(JanNed1)=1,\"\",IF(AND(YEAR(JanNed1+2)=KalendarskaGodina,MONTH(JanNed1+2)=1),JanNed1+2,\"\"))","v":""},{"$f":"IF(DAY(JanNed1)=1,\"\",IF(AND(YEAR(JanNed1+3)=KalendarskaGodina,MONTH(JanNed1+3)=1),JanNed1+3,\"\"))","v":""},{"$f":"IF(DAY(JanNed1)=1,\"\",IF(AND(YEAR(JanNed1+4)=KalendarskaGodina,MONTH(JanNed1+4)=1),JanNed1+4,\"\"))","v":""},{"$f":"IF(DAY(JanNed1)=1,\"\",IF(AND(YEAR(JanNed1+5)=KalendarskaGodina,MONTH(JanNed1+5)=1),JanNed1+5,\"\"))","v":""},{"$f":"IF(DAY(JanNed1)=1,\"\",IF(AND(YEAR(JanNed1+6)=KalendarskaGodina,MONTH(JanNed1+6)=1),JanNed1+6,\"\"))","v":"2022-01-01"},{"$f":"IF(DAY(JanNed1)=1,IF(AND(YEAR(JanNed1)=KalendarskaGodina,MONTH(JanNed1)=1),JanNed1,\"\"),IF(AND(YEAR(JanNed1+7)=KalendarskaGodina,MONTH(JanNed1+7)=1),JanNed1+7,\"\"))","v":"2022-01-02"},null,{"$f":"IF(DAY(FebNed1)=1,\"\",IF(AND(YEAR(FebNed1+1)=KalendarskaGodina,MONTH(FebNed1+1)=2),FebNed1+1,\"\"))","v":""},{"$f":"IF(DAY(FebNed1)=1,\"\",IF(AND(YEAR(FebNed1+2)=KalendarskaGodina,MONTH(FebNed1+2)=2),FebNed1+2,\"\"))","v":"2022-02-01"},{"$f":"IF(DAY(FebNed1)=1,\"\",IF(AND(YEAR(FebNed1+3)=KalendarskaGodina,MONTH(FebNed1+3)=2),FebNed1+3,\"\"))","v":"2022-02-02"},{"$f":"IF(DAY(FebNed1)=1,\"\",IF(AND(YEAR(FebNed1+4)=KalendarskaGodina,MONTH(FebNed1+4)=2),FebNed1+4,\"\"))","v":"2022-02-03"},{"$f":"IF(DAY(FebNed1)=1,\"\",IF(AND(YEAR(FebNed1+5)=KalendarskaGodina,MONTH(FebNed1+5)=2),FebNed1+5,\"\"))","v":"2022-02-04"},{"$f":"IF(DAY(FebNed1)=1,\"\",IF(AND(YEAR(FebNed1+6)=KalendarskaGodina,MONTH(FebNed1+6)=2),FebNed1+6,\"\"))","v":"2022-02-05"},{"$f":"IF(DAY(FebNed1)=1,IF(AND(YEAR(FebNed1)=KalendarskaGodina,MONTH(FebNed1)=2),FebNed1,\"\"),IF(AND(YEAR(FebNed1+7)=KalendarskaGodina,MONTH(FebNed1+7)=2),FebNed1+7,\"\"))","v":"2022-02-06"}]
[null,null,{"$f":"IF(DAY(JanNed1)=1,IF(AND(YEAR(JanNed1+1)=KalendarskaGodina,MONTH(JanNed1+1)=1),JanNed1+1,\"\"),IF(AND(YEAR(JanNed1+8)=KalendarskaGodina,MONTH(JanNed1+8)=1),JanNed1+8,\"\"))","v":"2022-01-03"},{"$f":"IF(DAY(JanNed1)=1,IF(AND(YEAR(JanNed1+2)=KalendarskaGodina,MONTH(JanNed1+2)=1),JanNed1+2,\"\"),IF(AND(YEAR(JanNed1+9)=KalendarskaGodina,MONTH(JanNed1+9)=1),JanNed1+9,\"\"))","v":"2022-01-04"},{"$f":"IF(DAY(JanNed1)=1,IF(AND(YEAR(JanNed1+3)=KalendarskaGodina,MONTH(JanNed1+3)=1),JanNed1+3,\"\"),IF(AND(YEAR(JanNed1+10)=KalendarskaGodina,MONTH(JanNed1+10)=1),JanNed1+10,\"\"))","v":"2022-01-05"},{"$f":"IF(DAY(JanNed1)=1,IF(AND(YEAR(JanNed1+4)=KalendarskaGodina,MONTH(JanNed1+4)=1),JanNed1+4,\"\"),IF(AND(YEAR(JanNed1+11)=KalendarskaGodina,MONTH(JanNed1+11)=1),JanNed1+11,\"\"))","v":"2022-01-06"},{"$f":"IF(DAY(JanNed1)=1,IF(AND(YEAR(JanNed1+5)=KalendarskaGodina,MONTH(JanNed1+5)=1),JanNed1+5,\"\"),IF(AND(YEAR(JanNed1+12)=KalendarskaGodina,MONTH(JanNed1+12)=1),JanNed1+12,\"\"))","v":"2022-01-07"},{"$f":"IF(DAY(JanNed1)=1,IF(AND(YEAR(JanNed1+6)=KalendarskaGodina,MONTH(JanNed1+6)=1),JanNed1+6,\"\"),IF(AND(YEAR(JanNed1+13)=KalendarskaGodina,MONTH(JanNed1+13)=1),JanNed1+13,\"\"))","v":"2022-01-08"},{"$f":"IF(DAY(JanNed1)=1,IF(AND(YEAR(JanNed1+7)=KalendarskaGodina,MONTH(JanNed1+7)=1),JanNed1+7,\"\"),IF(AND(YEAR(JanNed1+14)=KalendarskaGodina,MONTH(JanNed1+14)=1),JanNed1+14,\"\"))","v":"2022-01-09"},null,{"$f":"IF(DAY(FebNed1)=1,IF(AND(YEAR(FebNed1+1)=KalendarskaGodina,MONTH(FebNed1+1)=2),FebNed1+1,\"\"),IF(AND(YEAR(FebNed1+8)=KalendarskaGodina,MONTH(FebNed1+8)=2),FebNed1+8,\"\"))","v":"2022-02-07"},{"$f":"IF(DAY(FebNed1)=1,IF(AND(YEAR(FebNed1+2)=KalendarskaGodina,MONTH(FebNed1+2)=2),FebNed1+2,\"\"),IF(AND(YEAR(FebNed1+9)=KalendarskaGodina,MONTH(FebNed1+9)=2),FebNed1+9,\"\"))","v":"2022-02-08"},{"$f":"IF(DAY(FebNed1)=1,IF(AND(YEAR(FebNed1+3)=KalendarskaGodina,MONTH(FebNed1+3)=2),FebNed1+3,\"\"),IF(AND(YEAR(FebNed1+10)=KalendarskaGodina,MONTH(FebNed1+10)=2),FebNed1+10,\"\"))","v":"2022-02-09"},{"$f":"IF(DAY(FebNed1)=1,IF(AND(YEAR(FebNed1+4)=KalendarskaGodina,MONTH(FebNed1+4)=2),FebNed1+4,\"\"),IF(AND(YEAR(FebNed1+11)=KalendarskaGodina,MONTH(FebNed1+11)=2),FebNed1+11,\"\"))","v":"2022-02-10"},{"$f":"IF(DAY(FebNed1)=1,IF(AND(YEAR(FebNed1+5)=KalendarskaGodina,MONTH(FebNed1+5)=2),FebNed1+5,\"\"),IF(AND(YEAR(FebNed1+12)=KalendarskaGodina,MONTH(FebNed1+12)=2),FebNed1+12,\"\"))","v":"2022-02-11"},{"$f":"IF(DAY(FebNed1)=1,IF(AND(YEAR(FebNed1+6)=KalendarskaGodina,MONTH(FebNed1+6)=2),FebNed1+6,\"\"),IF(AND(YEAR(FebNed1+13)=KalendarskaGodina,MONTH(FebNed1+13)=2),FebNed1+13,\"\"))","v":"2022-02-12"},{"$f":"IF(DAY(FebNed1)=1,IF(AND(YEAR(FebNed1+7)=KalendarskaGodina,MONTH(FebNed1+7)=2),FebNed1+7,\"\"),IF(AND(YEAR(FebNed1+14)=KalendarskaGodina,MONTH(FebNed1+14)=2),FebNed1+14,\"\"))","v":"2022-02-13"},{"$nulls":3},"14. FEBRUAR"]
[null,null,{"$f":"IF(DAY(JanNed1)=1,IF(AND(YEAR(JanNed1+8)=KalendarskaGodina,MONTH(JanNed1+8)=1),JanNed1+8,\"\"),IF(AND(YEAR(JanNed1+15)=KalendarskaGodina,MONTH(JanNed1+15)=1),JanNed1+15,\"\"))","v":"2022-01-10"},{"$f":"IF(DAY(JanNed1)=1,IF(AND(YEAR(JanNed1+9)=KalendarskaGodina,MONTH(JanNed1+9)=1),JanNed1+9,\"\"),IF(AND(YEAR(JanNed1+16)=KalendarskaGodina,MONTH(JanNed1+16)=1),JanNed1+16,\"\"))","v":"2022-01-11"},{"$f":"IF(DAY(JanNed1)=1,IF(AND(YEAR(JanNed1+10)=KalendarskaGodina,MONTH(JanNed1+10)=1),JanNed1+10,\"\"),IF(AND(YEAR(JanNed1+17)=KalendarskaGodina,MONTH(JanNed1+17)=1),JanNed1+17,\"\"))","v":"2022-01-12"},{"$f":"IF(DAY(JanNed1)=1,IF(AND(YEAR(JanNed1+11)=KalendarskaGodina,MONTH(JanNed1+11)=1),JanNed1+11,\"\"),IF(AND(YEAR(JanNed1+18)=KalendarskaGodina,MONTH(JanNed1+18)=1),JanNed1+18,\"\"))","v":"2022-01-13"},{"$f":"IF(DAY(JanNed1)=1,IF(AND(YEAR(JanNed1+12)=KalendarskaGodina,MONTH(JanNed1+12)=1),JanNed1+12,\"\"),IF(AND(YEAR(JanNed1+19)=KalendarskaGodina,MONTH(JanNed1+19)=1),JanNed1+19,\"\"))","v":"2022-01-14"},{"$f":"IF(DAY(JanNed1)=1,IF(AND(YEAR(JanNed1+13)=KalendarskaGodina,MONTH(JanNed1+13)=1),JanNed1+13,\"\"),IF(AND(YEAR(JanNed1+20)=KalendarskaGodina,MONTH(JanNed1+20)=1),JanNed1+20,\"\"))","v":"2022-01-15"},{"$f":"IF(DAY(JanNed1)=1,IF(AND(YEAR(JanNed1+14)=KalendarskaGodina,MONTH(JanNed1+14)=1),JanNed1+14,\"\"),IF(AND(YEAR(JanNed1+21)=KalendarskaGodina,MONTH(JanNed1+21)=1),JanNed1+21,\"\"))","v":"2022-01-16"},null,{"$f":"IF(DAY(FebNed1)=1,IF(AND(YEAR(FebNed1+8)=KalendarskaGodina,MONTH(FebNed1+8)=2),FebNed1+8,\"\"),IF(AND(YEAR(FebNed1+15)=KalendarskaGodina,MONTH(FebNed1+15)=2),FebNed1+15,\"\"))","v":"2022-02-14"},{"$f":"IF(DAY(FebNed1)=1,IF(AND(YEAR(FebNed1+9)=KalendarskaGodina,MONTH(FebNed1+9)=2),FebNed1+9,\"\"),IF(AND(YEAR(FebNed1+16)=KalendarskaGodina,MONTH(FebNed1+16)=2),FebNed1+16,\"\"))","v":"2022-02-15"},{"$f":"IF(DAY(FebNed1)=1,IF(AND(YEAR(FebNed1+10)=KalendarskaGodina,MONTH(FebNed1+10)=2),FebNed1+10,\"\"),IF(AND(YEAR(FebNed1+17)=KalendarskaGodina,MONTH(FebNed1+17)=2),FebNed1+17,\"\"))","v":"2022-02-16"},{"$f":"IF(DAY(FebNed1)=1,IF(AND(YEAR(FebNed1+11)=KalendarskaGodina,MONTH(FebNed1+11)=2),FebNed1+11,\"\"),IF(AND(YEAR(FebNed1+18)=KalendarskaGodina,MONTH(FebNed1+18)=2),FebNed1+18,\"\"))","v":"2022-02-17"},{"$f":"IF(DAY(FebNed1)=1,IF(AND(YEAR(FebNed1+12)=KalendarskaGodina,MONTH(FebNed1+12)=2),FebNed1+12,\"\"),IF(AND(YEAR(FebNed1+19)=KalendarskaGodina,MONTH(FebNed1+19)=2),FebNed1+19,\"\"))","v":"2022-02-18"},{"$f":"IF(DAY(FebNed1)=1,IF(AND(YEAR(FebNed1+13)=KalendarskaGodina,MONTH(FebNed1+13)=2),FebNed1+13,\"\"),IF(AND(YEAR(FebNed1+20)=KalendarskaGodina,MONTH(FebNed1+20)=2),FebNed1+20,\"\"))","v":"2022-02-19"},{"$f":"IF(DAY(FebNed1)=1,IF(AND(YEAR(FebNed1+14)=KalendarskaGodina,MONTH(FebNed1+14)=2),FebNed1+14,\"\"),IF(AND(YEAR(FebNed1+21)=KalendarskaGodina,MONTH(FebNed1+21)=2),FebNed1+21,\"\"))","v":"2022-02-20"},{"$nulls":3},"DAN ZALJUBLJENIH"]
[null,null,{"$f":"IF(DAY(JanNed1)=1,IF(AND(YEAR(JanNed1+15)=KalendarskaGodina,MONTH(JanNed1+15)=1),JanNed1+15,\"\"),IF(AND(YEAR(JanNed1+22)=KalendarskaGodina,MONTH(JanNed1+22)=1),JanNed1+22,\"\"))","v":"2022-01-17"},{"$f":"IF(DAY(JanNed1)=1,IF(AND(YEAR(JanNed1+16)=KalendarskaGodina,MONTH(JanNed1+16)=1),JanNed1+16,\"\"),IF(AND(YEAR(JanNed1+23)=KalendarskaGodina,MONTH(JanNed1+23)=1),JanNed1+23,\"\"))","v":"2022-01-18"},{"$f":"IF(DAY(JanNed1)=1,IF(AND(YEAR(JanNed1+17)=KalendarskaGodina,MONTH(JanNed1+17)=1),JanNed1+17,\"\"),IF(AND(YEAR(JanNed1+24)=KalendarskaGodina,MONTH(JanNed1+24)=1),JanNed1+24,\"\"))","v":"2022-01-19"},{"$f":"IF(DAY(JanNed1)=1,IF(AND(YEAR(JanNed1+18)=KalendarskaGodina,MONTH(JanNed1+18)=1),JanNed1+18,\"\"),IF(AND(YEAR(JanNed1+25)=KalendarskaGodina,MONTH(JanNed1+25)=1),JanNed1+25,\"\"))","v":"2022-01-20"},{"$f":"IF(DAY(JanNed1)=1,IF(AND(YEAR(JanNed1+19)=KalendarskaGodina,MONTH(JanNed1+19)=1),JanNed1+19,\"\"),IF(AND(YEAR(JanNed1+26)=KalendarskaGodina,MONTH(JanNed1+26)=1),JanNed1+26,\"\"))","v":"2022-01-21"},{"$f":"IF(DAY(JanNed1)=1,IF(AND(YEAR(JanNed1+20)=KalendarskaGodina,MONTH(JanNed1+20)=1),JanNed1+20,\"\"),IF(AND(YEAR(JanNed1+27)=KalendarskaGodina,MONTH(JanNed1+27)=1),JanNed1+27,\"\"))","v":"2022-01-22"},{"$f":"IF(DAY(JanNed1)=1,IF(AND(YEAR(JanNed1+21)=KalendarskaGodina,MONTH(JanNed1+21)=1),JanNed1+21,\"\"),IF(AND(YEAR(JanNed1+28)=KalendarskaGodina,MONTH(JanNed1+28)=1),JanNed1+28,\"\"))","v":"2022-01-23"},null,{"$f":"IF(DAY(FebNed1)=1,IF(AND(YEAR(FebNed1+15)=KalendarskaGodina,MONTH(FebNed1+15)=2),FebNed1+15,\"\"),IF(AND(YEAR(FebNed1+22)=KalendarskaGodina,MONTH(FebNed1+22)=2),FebNed1+22,\"\"))","v":"2022-02-21"},{"$f":"IF(DAY(FebNed1)=1,IF(AND(YEAR(FebNed1+16)=KalendarskaGodina,MONTH(FebNed1+16)=2),FebNed1+16,\"\"),IF(AND(YEAR(FebNed1+23)=KalendarskaGodina,MONTH(FebNed1+23)=2),FebNed1+23,\"\"))","v":"2022-02-22"},{"$f":"IF(DAY(FebNed1)=1,IF(AND(YEAR(FebNed1+17)=KalendarskaGodina,MONTH(FebNed1+17)=2),FebNed1+17,\"\"),IF(AND(YEAR(FebNed1+24)=KalendarskaGodina,MONTH(FebNed1+24)=2),FebNed1+24,\"\"))","v":"2022-02-23"},{"$f":"IF(DAY(FebNed1)=1,IF(AND(YEAR(FebNed1+18)=KalendarskaGodina,MONTH(FebNed1+18)=2),FebNed1+18,\"\"),IF(AND(YEAR(FebNed1+25)=KalendarskaGodina,MONTH(FebNed1+25)=2),FebNed1+25,\"\"))","v":"2022-02-24"},{"$f":"IF(DAY(FebNed1)=1,IF(AND(YEAR(FebNed1+19)=KalendarskaGodina,MONTH(FebNed1+19)=2),FebNed1+19,\"\"),IF(AND(YEAR(FebNed1+26)=KalendarskaGodina,MONTH(FebNed1+26)=2),FebNed1+26,\"\"))","v":"2022-02-25"},{"$f":"IF(DAY(FebNed1)=1,IF(AND(YEAR(FebNed1+20)=KalendarskaGodina,MONTH(FebNed1+20)=2),FebNed1+20,\"\"),IF(AND(YEAR(FebNed1+27)=KalendarskaGodina,MONTH(FebNed1+27)=2),FebNed1+27,\"\"))","v":"2022-02-26"},{"$f":"IF(DAY(FebNed1)=1,IF(AND(YEAR(FebNed1+21)=KalendarskaGodina,MONTH(FebNed1+21)=2),FebNed1+21,\"\"),IF(AND(YEAR(FebNed1+28)=KalendarskaGodina,MONTH(FebNed1+28)=2),FebNed1+28,\"\"))","v":"2022-02-27"}]
[null,null,{"$f":"IF(DAY(JanNed1)=1,IF(AND(YEAR(JanNed1+22)=KalendarskaGodina,MONTH(JanNed1+22)=1),JanNed1+22,\"\"),IF(AND(YEAR(JanNed1+29)=KalendarskaGodina,MONTH(JanNed1+29)=1),JanNed1+29,\"\"))","v":"2022-01-24"},{"$f":"IF(DAY(JanNed1)=1,IF(AND(YEAR(JanNed1+23)=KalendarskaGodina,MONTH(JanNed1+23)=1),JanNed1+23,\"\"),IF(AND(YEAR(JanNed1+30)=KalendarskaGodina,MONTH(JanNed1+30)=1),JanNed1+30,\"\"))","v":"2022-01-25"},{"$f":"IF(DAY(JanNed1)=1,IF(AND(YEAR(JanNed1+24)=KalendarskaGodina,MONTH(JanNed1+24)=1),JanNed1+24,\"\"),IF(AND(YEAR(JanNed1+31)=KalendarskaGodina,MONTH(JanNed1+31)=1),JanNed1+31,\"\"))","v":"2022-01-26"},{"$f":"IF(DAY(JanNed1)=1,IF(AND(YEAR(JanNed1+25)=KalendarskaGodina,MONTH(JanNed1+25)=1),JanNed1+25,\"\"),IF(AND(YEAR(JanNed1+32)=KalendarskaGodina,MONTH(JanNed1+32)=1),JanNed1+32,\"\"))","v":"2022-01-27"},{"$f":"IF(DAY(JanNed1)=1,IF(AND(YEAR(JanNed1+26)=KalendarskaGodina,MONTH(JanNed1+26)=1),JanNed1+26,\"\"),IF(AND(YEAR(JanNed1+33)=KalendarskaGodina,MONTH(JanNed1+33)=1),JanNed1+33,\"\"))","v":"2022-01-28"},{"$f":"IF(DAY(JanNed1)=1,IF(AND(YEAR(JanNed1+27)=KalendarskaGodina,MONTH(JanNed1+27)=1),JanNed1+27,\"\"),IF(AND(YEAR(JanNed1+34)=KalendarskaGodina,MONTH(JanNed1+34)=1),JanNed1+34,\"\"))","v":"2022-01-29"},{"$f":"IF(DAY(JanNed1)=1,IF(AND(YEAR(JanNed1+28)=KalendarskaGodina,MONTH(JanNed1+28)=1),JanNed1+28,\"\"),IF(AND(YEAR(JanNed1+35)=KalendarskaGodina,MONTH(JanNed1+35)=1),JanNed1+35,\"\"))","v":"2022-01-30"},null,{"$f":"IF(DAY(FebNed1)=1,IF(AND(YEAR(FebNed1+22)=KalendarskaGodina,MONTH(FebNed1+22)=2),FebNed1+22,\"\"),IF(AND(YEAR(FebNed1+29)=KalendarskaGodina,MONTH(FebNed1+29)=2),FebNed1+29,\"\"))","v":"2022-02-28"},{"$f":"IF(DAY(FebNed1)=1,IF(AND(YEAR(FebNed1+23)=KalendarskaGodina,MONTH(FebNed1+23)=2),FebNed1+23,\"\"),IF(AND(YEAR(FebNed1+30)=KalendarskaGodina,MONTH(FebNed1+30)=2),FebNed1+30,\"\"))","v":""},{"$f":"IF(DAY(FebNed1)=1,IF(AND(YEAR(FebNed1+24)=KalendarskaGodina,MONTH(FebNed1+24)=2),FebNed1+24,\"\"),IF(AND(YEAR(FebNed1+31)=KalendarskaGodina,MONTH(FebNed1+31)=2),FebNed1+31,\"\"))","v":""},{"$f":"IF(DAY(FebNed1)=1,IF(AND(YEAR(FebNed1+25)=KalendarskaGodina,MONTH(FebNed1+25)=2),FebNed1+25,\"\"),IF(AND(YEAR(FebNed1+32)=KalendarskaGodina,MONTH(FebNed1+32)=2),FebNed1+32,\"\"))","v":""},{"$f":"IF(DAY(FebNed1)=1,IF(AND(YEAR(FebNed1+26)=KalendarskaGodina,MONTH(FebNed1+26)=2),FebNed1+26,\"\"),IF(AND(YEAR(FebNed1+33)=KalendarskaGodina,MONTH(FebNed1+33)=2),FebNed1+33,\"\"))","v":""},{"$f":"IF(DAY(FebNed1)=1,IF(AND(YEAR(FebNed1+27)=KalendarskaGodina,MONTH(FebNed1+27)=2),FebNed1+27,\"\"),IF(AND(YEAR(FebNed1+34)=KalendarskaGodina,MONTH(FebNed1+34)=2),FebNed1+34,\"\"))","v":""},{"$f":"IF(DAY(FebNed1)=1,IF(AND(YEAR(FebNed1+28)=KalendarskaGodina,MONTH(FebNed1+28)=2),FebNed1+28,\"\"),IF(AND(YEAR(FebNed1+35)=KalendarskaGodina,MONTH(FebNed1+35)=2),FebNed1+35,\"\"))","v":""},{"$nulls":3},"22. FEBRUAR"]
[null,null,{"$f":"IF(DAY(JanNed1)=1,IF(AND(YEAR(JanNed1+29)=KalendarskaGodina,MONTH(JanNed1+29)=1),JanNed1+29,\"\"),IF(AND(YEAR(JanNed1+36)=KalendarskaGodina,MONTH(JanNed1+36)=1),JanNed1+36,\"\"))","v":"2022-01-31"},{"$f":"IF(DAY(JanNed1)=1,IF(AND(YEAR(JanNed1+30)=KalendarskaGodina,MONTH(JanNed1+30)=1),JanNed1+30,\"\"),IF(AND(YEAR(JanNed1+37)=KalendarskaGodina,MONTH(JanNed1+37)=1),JanNed1+37,\"\"))","v":""},{"$f":"IF(DAY(JanNed1)=1,IF(AND(YEAR(JanNed1+31)=KalendarskaGodina,MONTH(JanNed1+31)=1),JanNed1+31,\"\"),IF(AND(YEAR(JanNed1+38)=KalendarskaGodina,MONTH(JanNed1+38)=1),JanNed1+38,\"\"))","v":""},{"$f":"IF(DAY(JanNed1)=1,IF(AND(YEAR(JanNed1+32)=KalendarskaGodina,MONTH(JanNed1+32)=1),JanNed1+32,\"\"),IF(AND(YEAR(JanNed1+39)=KalendarskaGodina,MONTH(JanNed1+39)=1),JanNed1+39,\"\"))","v":""},{"$f":"IF(DAY(JanNed1)=1,IF(AND(YEAR(JanNed1+33)=KalendarskaGodina,MONTH(JanNed1+33)=1),JanNed1+33,\"\"),IF(AND(YEAR(JanNed1+40)=KalendarskaGodina,MONTH(JanNed1+40)=1),JanNed1+40,\"\"))","v":""},{"$f":"IF(DAY(JanNed1)=1,IF(AND(YEAR(JanNed1+34)=KalendarskaGodina,MONTH(JanNed1+34)=1),JanNed1+34,\"\"),IF(AND(YEAR(JanNed1+41)=KalendarskaGodina,MONTH(JanNed1+41)=1),JanNed1+41,\"\"))","v":""},{"$f":"IF(DAY(JanNed1)=1,IF(AND(YEAR(JanNed1+35)=KalendarskaGodina,MONTH(JanNed1+35)=1),JanNed1+35,\"\"),IF(AND(YEAR(JanNed1+42)=KalendarskaGodina,MONTH(JanNed1+42)=1),JanNed1+42,\"\"))","v":""},null,{"$f":"IF(DAY(FebNed1)=1,IF(AND(YEAR(FebNed1+29)=KalendarskaGodina,MONTH(FebNed1+29)=2),FebNed1+29,\"\"),IF(AND(YEAR(FebNed1+36)=KalendarskaGodina,MONTH(FebNed1+36)=2),FebNed1+36,\"\"))","v":""},{"$f":"IF(DAY(FebNed1)=1,IF(AND(YEAR(FebNed1+30)=KalendarskaGodina,MONTH(FebNed1+30)=2),FebNed1+30,\"\"),IF(AND(YEAR(FebNed1+37)=KalendarskaGodina,MONTH(FebNed1+37)=2),FebNed1+37,\"\"))","v":""},{"$f":"IF(DAY(FebNed1)=1,IF(AND(YEAR(FebNed1+31)=KalendarskaGodina,MONTH(FebNed1+31)=2),FebNed1+31,\"\"),IF(AND(YEAR(FebNed1+38)=KalendarskaGodina,MONTH(FebNed1+38)=2),FebNed1+38,\"\"))","v":""},{"$f":"IF(DAY(FebNed1)=1,IF(AND(YEAR(FebNed1+32)=KalendarskaGodina,MONTH(FebNed1+32)=2),FebNed1+32,\"\"),IF(AND(YEAR(FebNed1+39)=KalendarskaGodina,MONTH(FebNed1+39)=2),FebNed1+39,\"\"))","v":""},{"$f":"IF(DAY(FebNed1)=1,IF(AND(YEAR(FebNed1+33)=KalendarskaGodina,MONTH(FebNed1+33)=2),FebNed1+33,\"\"),IF(AND(YEAR(FebNed1+40)=KalendarskaGodina,MONTH(FebNed1+40)=2),FebNed1+40,\"\"))","v":""},{"$f":"IF(DAY(FebNed1)=1,IF(AND(YEAR(FebNed1+34)=KalendarskaGodina,MONTH(FebNed1+34)=2),FebNed1+34,\"\"),IF(AND(YEAR(FebNed1+41)=KalendarskaGodina,MONTH(FebNed1+41)=2),FebNed1+41,\"\"))","v":""},{"$f":"IF(DAY(FebNed1)=1,IF(AND(YEAR(FebNed1+35)=KalendarskaGodina,MONTH(FebNed1+35)=2),FebNed1+35,\"\"),IF(AND(YEAR(FebNed1+42)=KalendarskaGodina,MONTH(FebNed1+42)=2),FebNed1+42,\"\"))","v":""},{"$nulls":3},"OTVORENA VRATA"]
[]
["Oznaka za mart je u ćeliji C12 i za april u ćeliji K12",null,"MART",{"$nulls":7},"APRIL"]
["Tabela martovskog kalendara je u ćelijama od C13 do I19 i tabela aprilskog kalendara u ćelijama od K13 do Q19. Sledeće uputstvo se nalazi u ćeliji A21",null,"PON","UT","SR","ČET","PET","SUB","NED",null,"PON","UT","SR","ČET","PET","SUB","NED"]
[null,null,{"$f":"IF(DAY(MarSun1)=1,\"\",IF(AND(YEAR(MarSun1+1)=KalendarskaGodina,MONTH(MarSun1+1)=3),MarSun1+1,\"\"))","v":""},{"$f":"IF(DAY(MarSun1)=1,\"\",IF(AND(YEAR(MarSun1+2)=KalendarskaGodina,MONTH(MarSun1+2)=3),MarSun1+2,\"\"))","v":"2022-03-01"},{"$f":"IF(DAY(MarSun1)=1,\"\",IF(AND(YEAR(MarSun1+3)=KalendarskaGodina,MONTH(MarSun1+3)=3),MarSun1+3,\"\"))","v":"2022-03-02"},{"$f":"IF(DAY(MarSun1)=1,\"\",IF(AND(YEAR(MarSun1+4)=KalendarskaGodina,MONTH(MarSun1+4)=3),MarSun1+4,\"\"))","v":"2022-03-03"},{"$f":"IF(DAY(MarSun1)=1,\"\",IF(AND(YEAR(MarSun1+5)=KalendarskaGodina,MONTH(MarSun1+5)=3),MarSun1+5,\"\"))","v":"2022-03-04"},{"$f":"IF(DAY(MarSun1)=1,\"\",IF(AND(YEAR(MarSun1+6)=KalendarskaGodina,MONTH(MarSun1+6)=3),MarSun1+6,\"\"))","v":"2022-03-05"},{"$f":"IF(DAY(MarSun1)=1,IF(AND(YEAR(MarSun1)=KalendarskaGodina,MONTH(MarSun1)=3),MarSun1,\"\"),IF(AND(YEAR(MarSun1+7)=KalendarskaGodina,MONTH(MarSun1+7)=3),MarSun1+7,\"\"))","v":"2022-03-06"},null,{"$f":"IF(DAY(AprSun1)=1,\"\",IF(AND(YEAR(AprSun1+1)=KalendarskaGodina,MONTH(AprSun1+1)=4),AprSun1+1,\"\"))","v":""},{"$f":"IF(DAY(AprSun1)=1,\"\",IF(AND(YEAR(AprSun1+2)=KalendarskaGodina,MONTH(AprSun1+2)=4),AprSun1+2,\"\"))","v":""},{"$f":"IF(DAY(AprSun1)=1,\"\",IF(AND(YEAR(AprSun1+3)=KalendarskaGodina,MONTH(AprSun1+3)=4),AprSun1+3,\"\"))","v":""},{"$f":"IF(DAY(AprSun1)=1,\"\",IF(AND(YEAR(AprSun1+4)=KalendarskaGodina,MONTH(AprSun1+4)=4),AprSun1+4,\"\"))","v":""},{"$f":"IF(DAY(AprSun1)=1,\"\",IF(AND(YEAR(AprSun1+5)=KalendarskaGodina,MONTH(AprSun1+5)=4),AprSun1+5,\"\"))","v":"2022-04-01"},{"$f":"IF(DAY(AprSun1)=1,\"\",IF(AND(YEAR(AprSun1+6)=KalendarskaGodina,MONTH(AprSun1+6)=4),AprSun1+6,\"\"))","v":"2022-04-02"},{"$f":"IF(DAY(AprSun1)=1,IF(AND(YEAR(AprSun1)=KalendarskaGodina,MONTH(AprSun1)=4),AprSun1,\"\"),IF(AND(YEAR(AprSun1+7)=KalendarskaGodina,MONTH(AprSun1+7)=4),AprSun1+7,\"\"))","v":"2022-04-03"}]
[null,null,{"$f":"IF(DAY(MarSun1)=1,IF(AND(YEAR(MarSun1+1)=KalendarskaGodina,MONTH(MarSun1+1)=3),MarSun1+1,\"\"),IF(AND(YEAR(MarSun1+8)=KalendarskaGodina,MONTH(MarSun1+8)=3),MarSun1+8,\"\"))","v":"2022-03-07"},{"$f":"IF(DAY(MarSun1)=1,IF(AND(YEAR(MarSun1+2)=KalendarskaGodina,MONTH(MarSun1+2)=3),MarSun1+2,\"\"),IF(AND(YEAR(MarSun1+9)=KalendarskaGodina,MONTH(MarSun1+9)=3),MarSun1+9,\"\"))","v":"2022-03-08"},{"$f":"IF(DAY(MarSun1)=1,IF(AND(YEAR(MarSun1+3)=KalendarskaGodina,MONTH(MarSun1+3)=3),MarSun1+3,\"\"),IF(AND(YEAR(MarSun1+10)=KalendarskaGodina,MONTH(MarSun1+10)=3),MarSun1+10,\"\"))","v":"2022-03-09"},{"$f":"IF(DAY(MarSun1)=1,IF(AND(YEAR(MarSun1+4)=KalendarskaGodina,MONTH(MarSun1+4)=3),MarSun1+4,\"\"),IF(AND(YEAR(MarSun1+11)=KalendarskaGodina,MONTH(MarSun1+11)=3),MarSun1+11,\"\"))","v":"2022-03-10"},{"$f":"IF(DAY(MarSun1)=1,IF(AND(YEAR(MarSun1+5)=KalendarskaGodina,MONTH(MarSun1+5)=3),MarSun1+5,\"\"),IF(AND(YEAR(MarSun1+12)=KalendarskaGodina,MONTH(MarSun1+12)=3),MarSun1+12,\"\"))","v":"2022-03-11"},{"$f":"IF(DAY(MarSun1)=1,IF(AND(YEAR(MarSun1+6)=KalendarskaGodina,MONTH(MarSun1+6)=3),MarSun1+6,\"\"),IF(AND(YEAR(MarSun1+13)=KalendarskaGodina,MONTH(MarSun1+13)=3),MarSun1+13,\"\"))","v":"2022-03-12"},{"$f":"IF(DAY(MarSun1)=1,IF(AND(YEAR(MarSun1+7)=KalendarskaGodina,MONTH(MarSun1+7)=3),MarSun1+7,\"\"),IF(AND(YEAR(MarSun1+14)=KalendarskaGodina,MONTH(MarSun1+14)=3),MarSun1+14,\"\"))","v":"2022-03-13"},null,{"$f":"IF(DAY(AprSun1)=1,IF(AND(YEAR(AprSun1+1)=KalendarskaGodina,MONTH(AprSun1+1)=4),AprSun1+1,\"\"),IF(AND(YEAR(AprSun1+8)=KalendarskaGodina,MONTH(AprSun1+8)=4),AprSun1+8,\"\"))","v":"2022-04-04"},{"$f":"IF(DAY(AprSun1)=1,IF(AND(YEAR(AprSun1+2)=KalendarskaGodina,MONTH(AprSun1+2)=4),AprSun1+2,\"\"),IF(AND(YEAR(AprSun1+9)=KalendarskaGodina,MONTH(AprSun1+9)=4),AprSun1+9,\"\"))","v":"2022-04-05"},{"$f":"IF(DAY(AprSun1)=1,IF(AND(YEAR(AprSun1+3)=KalendarskaGodina,MONTH(AprSun1+3)=4),AprSun1+3,\"\"),IF(AND(YEAR(AprSun1+10)=KalendarskaGodina,MONTH(AprSun1+10)=4),AprSun1+10,\"\"))","v":"2022-04-06"},{"$f":"IF(DAY(AprSun1)=1,IF(AND(YEAR(AprSun1+4)=KalendarskaGodina,MONTH(AprSun1+4)=4),AprSun1+4,\"\"),IF(AND(YEAR(AprSun1+11)=KalendarskaGodina,MONTH(AprSun1+11)=4),AprSun1+11,\"\"))","v":"2022-04-07"},{"$f":"IF(DAY(AprSun1)=1,IF(AND(YEAR(AprSun1+5)=KalendarskaGodina,MONTH(AprSun1+5)=4),AprSun1+5,\"\"),IF(AND(YEAR(AprSun1+12)=KalendarskaGodina,MONTH(AprSun1+12)=4),AprSun1+12,\"\"))","v":"2022-04-08"},{"$f":"IF(DAY(AprSun1)=1,IF(AND(YEAR(AprSun1+6)=KalendarskaGodina,MONTH(AprSun1+6)=4),AprSun1+6,\"\"),IF(AND(YEAR(AprSun1+13)=KalendarskaGodina,MONTH(AprSun1+13)=4),AprSun1+13,\"\"))","v":"2022-04-09"},{"$f":"IF(DAY(AprSun1)=1,IF(AND(YEAR(AprSun1+7)=KalendarskaGodina,MONTH(AprSun1+7)=4),AprSun1+7,\"\"),IF(AND(YEAR(AprSun1+14)=KalendarskaGodina,MONTH(AprSun1+14)=4),AprSun1+14,\"\"))","v":"2022-04-10"}]
[null,null,{"$f":"IF(DAY(MarSun1)=1,IF(AND(YEAR(MarSun1+8)=KalendarskaGodina,MONTH(MarSun1+8)=3),MarSun1+8,\"\"),IF(AND(YEAR(MarSun1+15)=KalendarskaGodina,MONTH(MarSun1+15)=3),MarSun1+15,\"\"))","v":"2022-03-14"},{"$f":"IF(DAY(MarSun1)=1,IF(AND(YEAR(MarSun1+9)=KalendarskaGodina,MONTH(MarSun1+9)=3),MarSun1+9,\"\"),IF(AND(YEAR(MarSun1+16)=KalendarskaGodina,MONTH(MarSun1+16)=3),MarSun1+16,\"\"))","v":"2022-03-15"},{"$f":"IF(DAY(MarSun1)=1,IF(AND(YEAR(MarSun1+10)=KalendarskaGodina,MONTH(MarSun1+10)=3),MarSun1+10,\"\"),IF(AND(YEAR(MarSun1+17)=KalendarskaGodina,MONTH(MarSun1+17)=3),MarSun1+17,\"\"))","v":"2022-03-16"},{"$f":"IF(DAY(MarSun1)=1,IF(AND(YEAR(MarSun1+11)=KalendarskaGodina,MONTH(MarSun1+11)=3),MarSun1+11,\"\"),IF(AND(YEAR(MarSun1+18)=KalendarskaGodina,MONTH(MarSun1+18)=3),MarSun1+18,\"\"))","v":"2022-03-17"},{"$f":"IF(DAY(MarSun1)=1,IF(AND(YEAR(MarSun1+12)=KalendarskaGodina,MONTH(MarSun1+12)=3),MarSun1+12,\"\"),IF(AND(YEAR(MarSun1+19)=KalendarskaGodina,MONTH(MarSun1+19)=3),MarSun1+19,\"\"))","v":"2022-03-18"},{"$f":"IF(DAY(MarSun1)=1,IF(AND(YEAR(MarSun1+13)=KalendarskaGodina,MONTH(MarSun1+13)=3),MarSun1+13,\"\"),IF(AND(YEAR(MarSun1+20)=KalendarskaGodina,MONTH(MarSun1+20)=3),MarSun1+20,\"\"))","v":"2022-03-19"},{"$f":"IF(DAY(MarSun1)=1,IF(AND(YEAR(MarSun1+14)=KalendarskaGodina,MONTH(MarSun1+14)=3),MarSun1+14,\"\"),IF(AND(YEAR(MarSun1+21)=KalendarskaGodina,MONTH(MarSun1+21)=3),MarSun1+21,\"\"))","v":"2022-03-20"},null,{"$f":"IF(DAY(AprSun1)=1,IF(AND(YEAR(AprSun1+8)=KalendarskaGodina,MONTH(AprSun1+8)=4),AprSun1+8,\"\"),IF(AND(YEAR(AprSun1+15)=KalendarskaGodina,MONTH(AprSun1+15)=4),AprSun1+15,\"\"))","v":"2022-04-11"},{"$f":"IF(DAY(AprSun1)=1,IF(AND(YEAR(AprSun1+9)=KalendarskaGodina,MONTH(AprSun1+9)=4),AprSun1+9,\"\"),IF(AND(YEAR(AprSun1+16)=KalendarskaGodina,MONTH(AprSun1+16)=4),AprSun1+16,\"\"))","v":"2022-04-12"},{"$f":"IF(DAY(AprSun1)=1,IF(AND(YEAR(AprSun1+10)=KalendarskaGodina,MONTH(AprSun1+10)=4),AprSun1+10,\"\"),IF(AND(YEAR(AprSun1+17)=KalendarskaGodina,MONTH(AprSun1+17)=4),AprSun1+17,\"\"))","v":"2022-04-13"},{"$f":"IF(DAY(AprSun1)=1,IF(AND(YEAR(AprSun1+11)=KalendarskaGodina,MONTH(AprSun1+11)=4),AprSun1+11,\"\"),IF(AND(YEAR(AprSun1+18)=KalendarskaGodina,MONTH(AprSun1+18)=4),AprSun1+18,\"\"))","v":"2022-04-14"},{"$f":"IF(DAY(AprSun1)=1,IF(AND(YEAR(AprSun1+12)=KalendarskaGodina,MONTH(AprSun1+12)=4),AprSun1+12,\"\"),IF(AND(YEAR(AprSun1+19)=KalendarskaGodina,MONTH(AprSun1+19)=4),AprSun1+19,\"\"))","v":"2022-04-15"},{"$f":"IF(DAY(AprSun1)=1,IF(AND(YEAR(AprSun1+13)=KalendarskaGodina,MONTH(AprSun1+13)=4),AprSun1+13,\"\"),IF(AND(YEAR(AprSun1+20)=KalendarskaGodina,MONTH(AprSun1+20)=4),AprSun1+20,\"\"))","v":"2022-04-16"},{"$f":"IF(DAY(AprSun1)=1,IF(AND(YEAR(AprSun1+14)=KalendarskaGodina,MONTH(AprSun1+14)=4),AprSun1+14,\"\"),IF(AND(YEAR(AprSun1+21)=KalendarskaGodina,MONTH(AprSun1+21)=4),AprSun1+21,\"\"))","v":"2022-04-17"}]
[null,null,{"$f":"IF(DAY(MarSun1)=1,IF(AND(YEAR(MarSun1+15)=KalendarskaGodina,MONTH(MarSun1+15)=3),MarSun1+15,\"\"),IF(AND(YEAR(MarSun1+22)=KalendarskaGodina,MONTH(MarSun1+22)=3),MarSun1+22,\"\"))","v":"2022-03-21"},{"$f":"IF(DAY(MarSun1)=1,IF(AND(YEAR(MarSun1+16)=KalendarskaGodina,MONTH(MarSun1+16)=3),MarSun1+16,\"\"),IF(AND(YEAR(MarSun1+23)=KalendarskaGodina,MONTH(MarSun1+23)=3),MarSun1+23,\"\"))","v":"2022-03-22"},{"$f":"IF(DAY(MarSun1)=1,IF(AND(YEAR(MarSun1+17)=KalendarskaGodina,MONTH(MarSun1+17)=3),MarSun1+17,\"\"),IF(AND(YEAR(MarSun1+24)=KalendarskaGodina,MONTH(MarSun1+24)=3),MarSun1+24,\"\"))","v":"2022-03-23"},{"$f":"IF(DAY(MarSun1)=1,IF(AND(YEAR(MarSun1+18)=KalendarskaGodina,MONTH(MarSun1+18)=3),MarSun1+18,\"\"),IF(AND(YEAR(MarSun1+25)=KalendarskaGodina,MONTH(MarSun1+25)=3),MarSun1+25,\"\"))","v":"2022-03-24"},{"$f":"IF(DAY(MarSun1)=1,IF(AND(YEAR(MarSun1+19)=KalendarskaGodina,MONTH(MarSun1+19)=3),MarSun1+19,\"\"),IF(AND(YEAR(MarSun1+26)=KalendarskaGodina,MONTH(MarSun1+26)=3),MarSun1+26,\"\"))","v":"2022-03-25"},{"$f":"IF(DAY(MarSun1)=1,IF(AND(YEAR(MarSun1+20)=KalendarskaGodina,MONTH(MarSun1+20)=3),MarSun1+20,\"\"),IF(AND(YEAR(MarSun1+27)=KalendarskaGodina,MONTH(MarSun1+27)=3),MarSun1+27,\"\"))","v":"2022-03-26"},{"$f":"IF(DAY(MarSun1)=1,IF(AND(YEAR(MarSun1+21)=KalendarskaGodina,MONTH(MarSun1+21)=3),MarSun1+21,\"\"),IF(AND(YEAR(MarSun1+28)=KalendarskaGodina,MONTH(MarSun1+28)=3),MarSun1+28,\"\"))","v":"2022-03-27"},null,{"$f":"IF(DAY(AprSun1)=1,IF(AND(YEAR(AprSun1+15)=KalendarskaGodina,MONTH(AprSun1+15)=4),AprSun1+15,\"\"),IF(AND(YEAR(AprSun1+22)=KalendarskaGodina,MONTH(AprSun1+22)=4),AprSun1+22,\"\"))","v":"2022-04-18"},{"$f":"IF(DAY(AprSun1)=1,IF(AND(YEAR(AprSun1+16)=KalendarskaGodina,MONTH(AprSun1+16)=4),AprSun1+16,\"\"),IF(AND(YEAR(AprSun1+23)=KalendarskaGodina,MONTH(AprSun1+23)=4),AprSun1+23,\"\"))","v":"2022-04-19"},{"$f":"IF(DAY(AprSun1)=1,IF(AND(YEAR(AprSun1+17)=KalendarskaGodina,MONTH(AprSun1+17)=4),AprSun1+17,\"\"),IF(AND(YEAR(AprSun1+24)=KalendarskaGodina,MONTH(AprSun1+24)=4),AprSun1+24,\"\"))","v":"2022-04-20"},{"$f":"IF(DAY(AprSun1)=1,IF(AND(YEAR(AprSun1+18)=KalendarskaGodina,MONTH(AprSun1+18)=4),AprSun1+18,\"\"),IF(AND(YEAR(AprSun1+25)=KalendarskaGodina,MONTH(AprSun1+25)=4),AprSun1+25,\"\"))","v":"2022-04-21"},{"$f":"IF(DAY(AprSun1)=1,IF(AND(YEAR(AprSun1+19)=KalendarskaGodina,MONTH(AprSun1+19)=4),AprSun1+19,\"\"),IF(AND(YEAR(AprSun1+26)=KalendarskaGodina,MONTH(AprSun1+26)=4),AprSun1+26,\"\"))","v":"2022-04-22"},{"$f":"IF(DAY(AprSun1)=1,IF(AND(YEAR(AprSun1+20)=KalendarskaGodina,MONTH(AprSun1+20)=4),AprSun1+20,\"\"),IF(AND(YEAR(AprSun1+27)=KalendarskaGodina,MONTH(AprSun1+27)=4),AprSun1+27,\"\"))","v":"2022-04-23"},{"$f":"IF(DAY(AprSun1)=1,IF(AND(YEAR(AprSun1+21)=KalendarskaGodina,MONTH(AprSun1+21)=4),AprSun1+21,\"\"),IF(AND(YEAR(AprSun1+28)=KalendarskaGodina,MONTH(AprSun1+28)=4),AprSun1+28,\"\"))","v":"2022-04-24"}]
[null,null,{"$f":"IF(DAY(MarSun1)=1,IF(AND(YEAR(MarSun1+22)=KalendarskaGodina,MONTH(MarSun1+22)=3),MarSun1+22,\"\"),IF(AND(YEAR(MarSun1+29)=KalendarskaGodina,MONTH(MarSun1+29)=3),MarSun1+29,\"\"))","v":"2022-03-28"},{"$f":"IF(DAY(MarSun1)=1,IF(AND(YEAR(MarSun1+23)=KalendarskaGodina,MONTH(MarSun1+23)=3),MarSun1+23,\"\"),IF(AND(YEAR(MarSun1+30)=KalendarskaGodina,MONTH(MarSun1+30)=3),MarSun1+30,\"\"))","v":"2022-03-29"},{"$f":"IF(DAY(MarSun1)=1,IF(AND(YEAR(MarSun1+24)=KalendarskaGodina,MONTH(MarSun1+24)=3),MarSun1+24,\"\"),IF(AND(YEAR(MarSun1+31)=KalendarskaGodina,MONTH(MarSun1+31)=3),MarSun1+31,\"\"))","v":"2022-03-30"},{"$f":"IF(DAY(MarSun1)=1,IF(AND(YEAR(MarSun1+25)=KalendarskaGodina,MONTH(MarSun1+25)=3),MarSun1+25,\"\"),IF(AND(YEAR(MarSun1+32)=KalendarskaGodina,MONTH(MarSun1+32)=3),MarSun1+32,\"\"))","v":"2022-03-31"},{"$f":"IF(DAY(MarSun1)=1,IF(AND(YEAR(MarSun1+26)=KalendarskaGodina,MONTH(MarSun1+26)=3),MarSun1+26,\"\"),IF(AND(YEAR(MarSun1+33)=KalendarskaGodina,MONTH(MarSun1+33)=3),MarSun1+33,\"\"))","v":""},{"$f":"IF(DAY(MarSun1)=1,IF(AND(YEAR(MarSun1+27)=KalendarskaGodina,MONTH(MarSun1+27)=3),MarSun1+27,\"\"),IF(AND(YEAR(MarSun1+34)=KalendarskaGodina,MONTH(MarSun1+34)=3),MarSun1+34,\"\"))","v":""},{"$f":"IF(DAY(MarSun1)=1,IF(AND(YEAR(MarSun1+28)=KalendarskaGodina,MONTH(MarSun1+28)=3),MarSun1+28,\"\"),IF(AND(YEAR(MarSun1+35)=KalendarskaGodina,MONTH(MarSun1+35)=3),MarSun1+35,\"\"))","v":""},null,{"$f":"IF(DAY(AprSun1)=1,IF(AND(YEAR(AprSun1+22)=KalendarskaGodina,MONTH(AprSun1+22)=4),AprSun1+22,\"\"),IF(AND(YEAR(AprSun1+29)=KalendarskaGodina,MONTH(AprSun1+29)=4),AprSun1+29,\"\"))","v":"2022-04-25"},{"$f":"IF(DAY(AprSun1)=1,IF(AND(YEAR(AprSun1+23)=KalendarskaGodina,MONTH(AprSun1+23)=4),AprSun1+23,\"\"),IF(AND(YEAR(AprSun1+30)=KalendarskaGodina,MONTH(AprSun1+30)=4),AprSun1+30,\"\"))","v":"2022-04-26"},{"$f":"IF(DAY(AprSun1)=1,IF(AND(YEAR(AprSun1+24)=KalendarskaGodina,MONTH(AprSun1+24)=4),AprSun1+24,\"\"),IF(AND(YEAR(AprSun1+31)=KalendarskaGodina,MONTH(AprSun1+31)=4),AprSun1+31,\"\"))","v":"2022-04-27"},{"$f":"IF(DAY(AprSun1)=1,IF(AND(YEAR(AprSun1+25)=KalendarskaGodina,MONTH(AprSun1+25)=4),AprSun1+25,\"\"),IF(AND(YEAR(AprSun1+32)=KalendarskaGodina,MONTH(AprSun1+32)=4),AprSun1+32,\"\"))","v":"2022-04-28"},{"$f":"IF(DAY(AprSun1)=1,IF(AND(YEAR(AprSun1+26)=KalendarskaGodina,MONTH(AprSun1+26)=4),AprSun1+26,\"\"),IF(AND(YEAR(AprSun1+33)=KalendarskaGodina,MONTH(AprSun1+33)=4),AprSun1+33,\"\"))","v":"2022-04-29"},{"$f":"IF(DAY(AprSun1)=1,IF(AND(YEAR(AprSun1+27)=KalendarskaGodina,MONTH(AprSun1+27)=4),AprSun1+27,\"\"),IF(AND(YEAR(AprSun1+34)=KalendarskaGodina,MONTH(AprSun1+34)=4),AprSun1+34,\"\"))","v":"2022-04-30"},{"$f":"IF(DAY(AprSun1)=1,IF(AND(YEAR(AprSun1+28)=KalendarskaGodina,MONTH(AprSun1+28)=4),AprSun1+28,\"\"),IF(AND(YEAR(AprSun1+35)=KalendarskaGodina,MONTH(AprSun1+35)=4),AprSun1+35,\"\"))","v":""}]
[null,null,{"$f":"IF(DAY(MarSun1)=1,IF(AND(YEAR(MarSun1+29)=KalendarskaGodina,MONTH(MarSun1+29)=3),MarSun1+29,\"\"),IF(AND(YEAR(MarSun1+36)=KalendarskaGodina,MONTH(MarSun1+36)=3),MarSun1+36,\"\"))","v":""},{"$f":"IF(DAY(MarSun1)=1,IF(AND(YEAR(MarSun1+30)=KalendarskaGodina,MONTH(MarSun1+30)=3),MarSun1+30,\"\"),IF(AND(YEAR(MarSun1+37)=KalendarskaGodina,MONTH(MarSun1+37)=3),MarSun1+37,\"\"))","v":""},{"$f":"IF(DAY(MarSun1)=1,IF(AND(YEAR(MarSun1+31)=KalendarskaGodina,MONTH(MarSun1+31)=3),MarSun1+31,\"\"),IF(AND(YEAR(MarSun1+38)=KalendarskaGodina,MONTH(MarSun1+38)=3),MarSun1+38,\"\"))","v":""},{"$f":"IF(DAY(MarSun1)=1,IF(AND(YEAR(MarSun1+32)=KalendarskaGodina,MONTH(MarSun1+32)=3),MarSun1+32,\"\"),IF(AND(YEAR(MarSun1+39)=KalendarskaGodina,MONTH(MarSun1+39)=3),MarSun1+39,\"\"))","v":""},{"$f":"IF(DAY(MarSun1)=1,IF(AND(YEAR(MarSun1+33)=KalendarskaGodina,MONTH(MarSun1+33)=3),MarSun1+33,\"\"),IF(AND(YEAR(MarSun1+40)=KalendarskaGodina,MONTH(MarSun1+40)=3),MarSun1+40,\"\"))","v":""},{"$f":"IF(DAY(MarSun1)=1,IF(AND(YEAR(MarSun1+34)=KalendarskaGodina,MONTH(MarSun1+34)=3),MarSun1+34,\"\"),IF(AND(YEAR(MarSun1+41)=KalendarskaGodina,MONTH(MarSun1+41)=3),MarSun1+41,\"\"))","v":""},{"$f":"IF(DAY(MarSun1)=1,IF(AND(YEAR(MarSun1+35)=KalendarskaGodina,MONTH(MarSun1+35)=3),MarSun1+35,\"\"),IF(AND(YEAR(MarSun1+42)=KalendarskaGodina,MONTH(MarSun1+42)=3),MarSun1+42,\"\"))","v":""},null,{"$f":"IF(DAY(AprSun1)=1,IF(AND(YEAR(AprSun1+29)=KalendarskaGodina,MONTH(AprSun1+29)=4),AprSun1+29,\"\"),IF(AND(YEAR(AprSun1+36)=KalendarskaGodina,MONTH(AprSun1+36)=4),AprSun1+36,\"\"))","v":""},{"$f":"IF(DAY(AprSun1)=1,IF(AND(YEAR(AprSun1+30)=KalendarskaGodina,MONTH(AprSun1+30)=4),AprSun1+30,\"\"),IF(AND(YEAR(AprSun1+37)=KalendarskaGodina,MONTH(AprSun1+37)=4),AprSun1+37,\"\"))","v":""},{"$f":"IF(DAY(AprSun1)=1,IF(AND(YEAR(AprSun1+31)=KalendarskaGodina,MONTH(AprSun1+31)=4),AprSun1+31,\"\"),IF(AND(YEAR(AprSun1+38)=KalendarskaGodina,MONTH(AprSun1+38)=4),AprSun1+38,\"\"))","v":""},{"$f":"IF(DAY(AprSun1)=1,IF(AND(YEAR(AprSun1+32)=KalendarskaGodina,MONTH(AprSun1+32)=4),AprSun1+32,\"\"),IF(AND(YEAR(AprSun1+39)=KalendarskaGodina,MONTH(AprSun1+39)=4),AprSun1+39,\"\"))","v":""},{"$f":"IF(DAY(AprSun1)=1,IF(AND(YEAR(AprSun1+33)=KalendarskaGodina,MONTH(AprSun1+33)=4),AprSun1+33,\"\"),IF(AND(YEAR(AprSun1+40)=KalendarskaGodina,MONTH(AprSun1+40)=4),AprSun1+40,\"\"))","v":""},{"$f":"IF(DAY(AprSun1)=1,IF(AND(YEAR(AprSun1+34)=KalendarskaGodina,MONTH(AprSun1+34)=4),AprSun1+34,\"\"),IF(AND(YEAR(AprSun1+41)=KalendarskaGodina,MONTH(AprSun1+41)=4),AprSun1+41,\"\"))","v":""},{"$f":"IF(DAY(AprSun1)=1,IF(AND(YEAR(AprSun1+35)=KalendarskaGodina,MONTH(AprSun1+35)=4),AprSun1+35,\"\"),IF(AND(YEAR(AprSun1+42)=KalendarskaGodina,MONTH(AprSun1+42)=4),AprSun1+42,\"\"))","v":""}]
[]
["Oznaka za maj se nalazi u ćeliji C21 i za jun u ćeliji K21",null,"MAJ",{"$nulls":7},"JUN"]
["Tabela majskog kalendara se nalazi u ćelijama od C22 do I28 i tabela junskog kalendara u ćelijama od K22 do Q28. Sledeće uputstvo se nalazi u ćeliji A30.",null,"PON","UT","SR","ČET","PET","SUB","NED",null,"PON","UT","SR","ČET","PET","SUB","NED"]
[null,null,{"$f":"IF(DAY(MaySun1)=1,\"\",IF(AND(YEAR(MaySun1+1)=KalendarskaGodina,MONTH(MaySun1+1)=5),MaySun1+1,\"\"))","v":""},{"$f":"IF(DAY(MaySun1)=1,\"\",IF(AND(YEAR(MaySun1+2)=KalendarskaGodina,MONTH(MaySun1+2)=5),MaySun1+2,\"\"))","v":""},{"$f":"IF(DAY(MaySun1)=1,\"\",IF(AND(YEAR(MaySun1+3)=KalendarskaGodina,MONTH(MaySun1+3)=5),MaySun1+3,\"\"))","v":""},{"$f":"IF(DAY(MaySun1)=1,\"\",IF(AND(YEAR(MaySun1+4)=KalendarskaGodina,MONTH(MaySun1+4)=5),MaySun1+4,\"\"))","v":""},{"$f":"IF(DAY(MaySun1)=1,\"\",IF(AND(YEAR(MaySun1+5)=KalendarskaGodina,MONTH(MaySun1+5)=5),MaySun1+5,\"\"))","v":""},{"$f":"IF(DAY(MaySun1)=1,\"\",IF(AND(YEAR(MaySun1+6)=KalendarskaGodina,MONTH(MaySun1+6)=5),MaySun1+6,\"\"))","v":""},{"$f":"IF(DAY(MaySun1)=1,IF(AND(YEAR(MaySun1)=KalendarskaGodina,MONTH(MaySun1)=5),MaySun1,\"\"),IF(AND(YEAR(MaySun1+7)=KalendarskaGodina,MONTH(MaySun1+7)=5),MaySun1+7,\"\"))","v":"2022-05-01"},null,{"$f":"IF(DAY(JunSun1)=1,\"\",IF(AND(YEAR(JunSun1+1)=KalendarskaGodina,MONTH(JunSun1+1)=6),JunSun1+1,\"\"))","v":""},{"$f":"IF(DAY(JunSun1)=1,\"\",IF(AND(YEAR(JunSun1+2)=KalendarskaGodina,MONTH(JunSun1+2)=6),JunSun1+2,\"\"))","v":""},{"$f":"IF(DAY(JunSun1)=1,\"\",IF(AND(YEAR(JunSun1+3)=KalendarskaGodina,MONTH(JunSun1+3)=6),JunSun1+3,\"\"))","v":"2022-06-01"},{"$f":"IF(DAY(JunSun1)=1,\"\",IF(AND(YEAR(JunSun1+4)=KalendarskaGodina,MONTH(JunSun1+4)=6),JunSun1+4,\"\"))","v":"2022-06-02"},{"$f":"IF(DAY(JunSun1)=1,\"\",IF(AND(YEAR(JunSun1+5)=KalendarskaGodina,MONTH(JunSun1+5)=6),JunSun1+5,\"\"))","v":"2022-06-03"},{"$f":"IF(DAY(JunSun1)=1,\"\",IF(AND(YEAR(JunSun1+6)=KalendarskaGodina,MONTH(JunSun1+6)=6),JunSun1+6,\"\"))","v":"2022-06-04"},{"$f":"IF(DAY(JunSun1)=1,IF(AND(YEAR(JunSun1)=KalendarskaGodina,MONTH(JunSun1)=6),JunSun1,\"\"),IF(AND(YEAR(JunSun1+7)=KalendarskaGodina,MONTH(JunSun1+7)=6),JunSun1+7,\"\"))","v":"2022-06-05"}]
[null,null,{"$f":"IF(DAY(MaySun1)=1,IF(AND(YEAR(MaySun1+1)=KalendarskaGodina,MONTH(MaySun1+1)=5),MaySun1+1,\"\"),IF(AND(YEAR(MaySun1+8)=KalendarskaGodina,MONTH(MaySun1+8)=5),MaySun1+8,\"\"))","v":"2022-05-02"},{"$f":"IF(DAY(MaySun1)=1,IF(AND(YEAR(MaySun1+2)=KalendarskaGodina,MONTH(MaySun1+2)=5),MaySun1+2,\"\"),IF(AND(YEAR(MaySun1+9)=KalendarskaGodina,MONTH(MaySun1+9)=5),MaySun1+9,\"\"))","v":"2022-05-03"},{"$f":"IF(DAY(MaySun1)=1,IF(AND(YEAR(MaySun1+3)=KalendarskaGodina,MONTH(MaySun1+3)=5),MaySun1+3,\"\"),IF(AND(YEAR(MaySun1+10)=KalendarskaGodina,MONTH(MaySun1+10)=5),MaySun1+10,\"\"))","v":"2022-05-04"},{"$f":"IF(DAY(MaySun1)=1,IF(AND(YEAR(MaySun1+4)=KalendarskaGodina,MONTH(MaySun1+4)=5),MaySun1+4,\"\"),IF(AND(YEAR(MaySun1+11)=KalendarskaGodina,MONTH(MaySun1+11)=5),MaySun1+11,\"\"))","v":"2022-05-05"},{"$f":"IF(DAY(MaySun1)=1,IF(AND(YEAR(MaySun1+5)=KalendarskaGodina,MONTH(MaySun1+5)=5),MaySun1+5,\"\"),IF(AND(YEAR(MaySun1+12)=KalendarskaGodina,MONTH(MaySun1+12)=5),MaySun1+12,\"\"))","v":"2022-05-06"},{"$f":"IF(DAY(MaySun1)=1,IF(AND(YEAR(MaySun1+6)=KalendarskaGodina,MONTH(MaySun1+6)=5),MaySun1+6,\"\"),IF(AND(YEAR(MaySun1+13)=KalendarskaGodina,MONTH(MaySun1+13)=5),MaySun1+13,\"\"))","v":"2022-05-07"},{"$f":"IF(DAY(MaySun1)=1,IF(AND(YEAR(MaySun1+7)=KalendarskaGodina,MONTH(MaySun1+7)=5),MaySun1+7,\"\"),IF(AND(YEAR(MaySun1+14)=KalendarskaGodina,MONTH(MaySun1+14)=5),MaySun1+14,\"\"))","v":"2022-05-08"},null,{"$f":"IF(DAY(JunSun1)=1,IF(AND(YEAR(JunSun1+1)=KalendarskaGodina,MONTH(JunSun1+1)=6),JunSun1+1,\"\"),IF(AND(YEAR(JunSun1+8)=KalendarskaGodina,MONTH(JunSun1+8)=6),JunSun1+8,\"\"))","v":"2022-06-06"},{"$f":"IF(DAY(JunSun1)=1,IF(AND(YEAR(JunSun1+2)=KalendarskaGodina,MONTH(JunSun1+2)=6),JunSun1+2,\"\"),IF(AND(YEAR(JunSun1+9)=KalendarskaGodina,MONTH(JunSun1+9)=6),JunSun1+9,\"\"))","v":"2022-06-07"},{"$f":"IF(DAY(JunSun1)=1,IF(AND(YEAR(JunSun1+3)=KalendarskaGodina,MONTH(JunSun1+3)=6),JunSun1+3,\"\"),IF(AND(YEAR(JunSun1+10)=KalendarskaGodina,MONTH(JunSun1+10)=6),JunSun1+10,\"\"))","v":"2022-06-08"},{"$f":"IF(DAY(JunSun1)=1,IF(AND(YEAR(JunSun1+4)=KalendarskaGodina,MONTH(JunSun1+4)=6),JunSun1+4,\"\"),IF(AND(YEAR(JunSun1+11)=KalendarskaGodina,MONTH(JunSun1+11)=6),JunSun1+11,\"\"))","v":"2022-06-09"},{"$f":"IF(DAY(JunSun1)=1,IF(AND(YEAR(JunSun1+5)=KalendarskaGodina,MONTH(JunSun1+5)=6),JunSun1+5,\"\"),IF(AND(YEAR(JunSun1+12)=KalendarskaGodina,MONTH(JunSun1+12)=6),JunSun1+12,\"\"))","v":"2022-06-10"},{"$f":"IF(DAY(JunSun1)=1,IF(AND(YEAR(JunSun1+6)=KalendarskaGodina,MONTH(JunSun1+6)=6),JunSun1+6,\"\"),IF(AND(YEAR(JunSun1+13)=KalendarskaGodina,MONTH(JunSun1+13)=6),JunSun1+13,\"\"))","v":"2022-06-11"},{"$f":"IF(DAY(JunSun1)=1,IF(AND(YEAR(JunSun1+7)=KalendarskaGodina,MONTH(JunSun1+7)=6),JunSun1+7,\"\"),IF(AND(YEAR(JunSun1+14)=KalendarskaGodina,MONTH(JunSun1+14)=6),JunSun1+14,\"\"))","v":"2022-06-12"}]
[null,null,{"$f":"IF(DAY(MaySun1)=1,IF(AND(YEAR(MaySun1+8)=KalendarskaGodina,MONTH(MaySun1+8)=5),MaySun1+8,\"\"),IF(AND(YEAR(MaySun1+15)=KalendarskaGodina,MONTH(MaySun1+15)=5),MaySun1+15,\"\"))","v":"2022-05-09"},{"$f":"IF(DAY(MaySun1)=1,IF(AND(YEAR(MaySun1+9)=KalendarskaGodina,MONTH(MaySun1+9)=5),MaySun1+9,\"\"),IF(AND(YEAR(MaySun1+16)=KalendarskaGodina,MONTH(MaySun1+16)=5),MaySun1+16,\"\"))","v":"2022-05-10"},{"$f":"IF(DAY(MaySun1)=1,IF(AND(YEAR(MaySun1+10)=KalendarskaGodina,MONTH(MaySun1+10)=5),MaySun1+10,\"\"),IF(AND(YEAR(MaySun1+17)=KalendarskaGodina,MONTH(MaySun1+17)=5),MaySun1+17,\"\"))","v":"2022-05-11"},{"$f":"IF(DAY(MaySun1)=1,IF(AND(YEAR(MaySun1+11)=KalendarskaGodina,MONTH(MaySun1+11)=5),MaySun1+11,\"\"),IF(AND(YEAR(MaySun1+18)=KalendarskaGodina,MONTH(MaySun1+18)=5),MaySun1+18,\"\"))","v":"2022-05-12"},{"$f":"IF(DAY(MaySun1)=1,IF(AND(YEAR(MaySun1+12)=KalendarskaGodina,MONTH(MaySun1+12)=5),MaySun1+12,\"\"),IF(AND(YEAR(MaySun1+19)=KalendarskaGodina,MONTH(MaySun1+19)=5),MaySun1+19,\"\"))","v":"2022-05-13"},{"$f":"IF(DAY(MaySun1)=1,IF(AND(YEAR(MaySun1+13)=KalendarskaGodina,MONTH(MaySun1+13)=5),MaySun1+13,\"\"),IF(AND(YEAR(MaySun1+20)=KalendarskaGodina,MONTH(MaySun1+20)=5),MaySun1+20,\"\"))","v":"2022-05-14"},{"$f":"IF(DAY(MaySun1)=1,IF(AND(YEAR(MaySun1+14)=KalendarskaGodina,MONTH(MaySun1+14)=5),MaySun1+14,\"\"),IF(AND(YEAR(MaySun1+21)=KalendarskaGodina,MONTH(MaySun1+21)=5),MaySun1+21,\"\"))","v":"2022-05-15"},null,{"$f":"IF(DAY(JunSun1)=1,IF(AND(YEAR(JunSun1+8)=KalendarskaGodina,MONTH(JunSun1+8)=6),JunSun1+8,\"\"),IF(AND(YEAR(JunSun1+15)=KalendarskaGodina,MONTH(JunSun1+15)=6),JunSun1+15,\"\"))","v":"2022-06-13"},{"$f":"IF(DAY(JunSun1)=1,IF(AND(YEAR(JunSun1+9)=KalendarskaGodina,MONTH(JunSun1+9)=6),JunSun1+9,\"\"),IF(AND(YEAR(JunSun1+16)=KalendarskaGodina,MONTH(JunSun1+16)=6),JunSun1+16,\"\"))","v":"2022-06-14"},{"$f":"IF(DAY(JunSun1)=1,IF(AND(YEAR(JunSun1+10)=KalendarskaGodina,MONTH(JunSun1+10)=6),JunSun1+10,\"\"),IF(AND(YEAR(JunSun1+17)=KalendarskaGodina,MONTH(JunSun1+17)=6),JunSun1+17,\"\"))","v":"2022-06-15"},{"$f":"IF(DAY(JunSun1)=1,IF(AND(YEAR(JunSun1+11)=KalendarskaGodina,MONTH(JunSun1+11)=6),JunSun1+11,\"\"),IF(AND(YEAR(JunSun1+18)=KalendarskaGodina,MONTH(JunSun1+18)=6),JunSun1+18,\"\"))","v":"2022-06-16"},{"$f":"IF(DAY(JunSun1)=1,IF(AND(YEAR(JunSun1+12)=KalendarskaGodina,MONTH(JunSun1+12)=6),JunSun1+12,\"\"),IF(AND(YEAR(JunSun1+19)=KalendarskaGodina,MONTH(JunSun1+19)=6),JunSun1+19,\"\"))","v":"2022-06-17"},{"$f":"IF(DAY(JunSun1)=1,IF(AND(YEAR(JunSun1+13)=KalendarskaGodina,MONTH(JunSun1+13)=6),JunSun1+13,\"\"),IF(AND(YEAR(JunSun1+20)=KalendarskaGodina,MONTH(JunSun1+20)=6),JunSun1+20,\"\"))","v":"2022-06-18"},{"$f":"IF(DAY(JunSun1)=1,IF(AND(YEAR(JunSun1+14)=KalendarskaGodina,MONTH(JunSun1+14)=6),JunSun1+14,\"\"),IF(AND(YEAR(JunSun1+21)=KalendarskaGodina,MONTH(JunSun1+21)=6),JunSun1+21,\"\"))","v":"2022-06-19"}]
[null,null,{"$f":"IF(DAY(MaySun1)=1,IF(AND(YEAR(MaySun1+15)=KalendarskaGodina,MONTH(MaySun1+15)=5),MaySun1+15,\"\"),IF(AND(YEAR(MaySun1+22)=KalendarskaGodina,MONTH(MaySun1+22)=5),MaySun1+22,\"\"))","v":"2022-05-16"},{"$f":"IF(DAY(MaySun1)=1,IF(AND(YEAR(MaySun1+16)=KalendarskaGodina,MONTH(MaySun1+16)=5),MaySun1+16,\"\"),IF(AND(YEAR(MaySun1+23)=KalendarskaGodina,MONTH(MaySun1+23)=5),MaySun1+23,\"\"))","v":"2022-05-17"},{"$f":"IF(DAY(MaySun1)=1,IF(AND(YEAR(MaySun1+17)=KalendarskaGodina,MONTH(MaySun1+17)=5),MaySun1+17,\"\"),IF(AND(YEAR(MaySun1+24)=KalendarskaGodina,MONTH(MaySun1+24)=5),MaySun1+24,\"\"))","v":"2022-05-18"},{"$f":"IF(DAY(MaySun1)=1,IF(AND(YEAR(MaySun1+18)=KalendarskaGodina,MONTH(MaySun1+18)=5),MaySun1+18,\"\"),IF(AND(YEAR(MaySun1+25)=KalendarskaGodina,MONTH(MaySun1+25)=5),MaySun1+25,\"\"))","v":"2022-05-19"},{"$f":"IF(DAY(MaySun1)=1,IF(AND(YEAR(MaySun1+19)=KalendarskaGodina,MONTH(MaySun1+19)=5),MaySun1+19,\"\"),IF(AND(YEAR(MaySun1+26)=KalendarskaGodina,MONTH(MaySun1+26)=5),MaySun1+26,\"\"))","v":"2022-05-20"},{"$f":"IF(DAY(MaySun1)=1,IF(AND(YEAR(MaySun1+20)=KalendarskaGodina,MONTH(MaySun1+20)=5),MaySun1+20,\"\"),IF(AND(YEAR(MaySun1+27)=KalendarskaGodina,MONTH(MaySun1+27)=5),MaySun1+27,\"\"))","v":"2022-05-21"},{"$f":"IF(DAY(MaySun1)=1,IF(AND(YEAR(MaySun1+21)=KalendarskaGodina,MONTH(MaySun1+21)=5),MaySun1+21,\"\"),IF(AND(YEAR(MaySun1+28)=KalendarskaGodina,MONTH(MaySun1+28)=5),MaySun1+28,\"\"))","v":"2022-05-22"},null,{"$f":"IF(DAY(JunSun1)=1,IF(AND(YEAR(JunSun1+15)=KalendarskaGodina,MONTH(JunSun1+15)=6),JunSun1+15,\"\"),IF(AND(YEAR(JunSun1+22)=KalendarskaGodina,MONTH(JunSun1+22)=6),JunSun1+22,\"\"))","v":"2022-06-20"},{"$f":"IF(DAY(JunSun1)=1,IF(AND(YEAR(JunSun1+16)=KalendarskaGodina,MONTH(JunSun1+16)=6),JunSun1+16,\"\"),IF(AND(YEAR(JunSun1+23)=KalendarskaGodina,MONTH(JunSun1+23)=6),JunSun1+23,\"\"))","v":"2022-06-21"},{"$f":"IF(DAY(JunSun1)=1,IF(AND(YEAR(JunSun1+17)=KalendarskaGodina,MONTH(JunSun1+17)=6),JunSun1+17,\"\"),IF(AND(YEAR(JunSun1+24)=KalendarskaGodina,MONTH(JunSun1+24)=6),JunSun1+24,\"\"))","v":"2022-06-22"},{"$f":"IF(DAY(JunSun1)=1,IF(AND(YEAR(JunSun1+18)=KalendarskaGodina,MONTH(JunSun1+18)=6),JunSun1+18,\"\"),IF(AND(YEAR(JunSun1+25)=KalendarskaGodina,MONTH(JunSun1+25)=6),JunSun1+25,\"\"))","v":"2022-06-23"},{"$f":"IF(DAY(JunSun1)=1,IF(AND(YEAR(JunSun1+19)=KalendarskaGodina,MONTH(JunSun1+19)=6),JunSun1+19,\"\"),IF(AND(YEAR(JunSun1+26)=KalendarskaGodina,MONTH(JunSun1+26)=6),JunSun1+26,\"\"))","v":"2022-06-24"},{"$f":"IF(DAY(JunSun1)=1,IF(AND(YEAR(JunSun1+20)=KalendarskaGodina,MONTH(JunSun1+20)=6),JunSun1+20,\"\"),IF(AND(YEAR(JunSun1+27)=KalendarskaGodina,MONTH(JunSun1+27)=6),JunSun1+27,\"\"))","v":"2022-06-25"},{"$f":"IF(DAY(JunSun1)=1,IF(AND(YEAR(JunSun1+21)=KalendarskaGodina,MONTH(JunSun1+21)=6),JunSun1+21,\"\"),IF(AND(YEAR(JunSun1+28)=KalendarskaGodina,MONTH(JunSun1+28)=6),JunSun1+28,\"\"))","v":"2022-06-26"}]
[null,null,{"$f":"IF(DAY(MaySun1)=1,IF(AND(YEAR(MaySun1+22)=KalendarskaGodina,MONTH(MaySun1+22)=5),MaySun1+22,\"\"),IF(AND(YEAR(MaySun1+29)=KalendarskaGodina,MONTH(MaySun1+29)=5),MaySun1+29,\"\"))","v":"2022-05-23"},{"$f":"IF(DAY(MaySun1)=1,IF(AND(YEAR(MaySun1+23)=KalendarskaGodina,MONTH(MaySun1+23)=5),MaySun1+23,\"\"),IF(AND(YEAR(MaySun1+30)=KalendarskaGodina,MONTH(MaySun1+30)=5),MaySun1+30,\"\"))","v":"2022-05-24"},{"$f":"IF(DAY(MaySun1)=1,IF(AND(YEAR(MaySun1+24)=KalendarskaGodina,MONTH(MaySun1+24)=5),MaySun1+24,\"\"),IF(AND(YEAR(MaySun1+31)=KalendarskaGodina,MONTH(MaySun1+31)=5),MaySun1+31,\"\"))","v":"2022-05-25"},{"$f":"IF(DAY(MaySun1)=1,IF(AND(YEAR(MaySun1+25)=KalendarskaGodina,MONTH(MaySun1+25)=5),MaySun1+25,\"\"),IF(AND(YEAR(MaySun1+32)=KalendarskaGodina,MONTH(MaySun1+32)=5),MaySun1+32,\"\"))","v":"2022-05-26"},{"$f":"IF(DAY(MaySun1)=1,IF(AND(YEAR(MaySun1+26)=KalendarskaGodina,MONTH(MaySun1+26)=5),MaySun1+26,\"\"),IF(AND(YEAR(MaySun1+33)=KalendarskaGodina,MONTH(MaySun1+33)=5),MaySun1+33,\"\"))","v":"2022-05-27"},{"$f":"IF(DAY(MaySun1)=1,IF(AND(YEAR(MaySun1+27)=KalendarskaGodina,MONTH(MaySun1+27)=5),MaySun1+27,\"\"),IF(AND(YEAR(MaySun1+34)=KalendarskaGodina,MONTH(MaySun1+34)=5),MaySun1+34,\"\"))","v":"2022-05-28"},{"$f":"IF(DAY(MaySun1)=1,IF(AND(YEAR(MaySun1+28)=KalendarskaGodina,MONTH(MaySun1+28)=5),MaySun1+28,\"\"),IF(AND(YEAR(MaySun1+35)=KalendarskaGodina,MONTH(MaySun1+35)=5),MaySun1+35,\"\"))","v":"2022-05-29"},null,{"$f":"IF(DAY(JunSun1)=1,IF(AND(YEAR(JunSun1+22)=KalendarskaGodina,MONTH(JunSun1+22)=6),JunSun1+22,\"\"),IF(AND(YEAR(JunSun1+29)=KalendarskaGodina,MONTH(JunSun1+29)=6),JunSun1+29,\"\"))","v":"2022-06-27"},{"$f":"IF(DAY(JunSun1)=1,IF(AND(YEAR(JunSun1+23)=KalendarskaGodina,MONTH(JunSun1+23)=6),JunSun1+23,\"\"),IF(AND(YEAR(JunSun1+30)=KalendarskaGodina,MONTH(JunSun1+30)=6),JunSun1+30,\"\"))","v":"2022-06-28"},{"$f":"IF(DAY(JunSun1)=1,IF(AND(YEAR(JunSun1+24)=KalendarskaGodina,MONTH(JunSun1+24)=6),JunSun1+24,\"\"),IF(AND(YEAR(JunSun1+31)=KalendarskaGodina,MONTH(JunSun1+31)=6),JunSun1+31,\"\"))","v":"2022-06-29"},{"$f":"IF(DAY(JunSun1)=1,IF(AND(YEAR(JunSun1+25)=KalendarskaGodina,MONTH(JunSun1+25)=6),JunSun1+25,\"\"),IF(AND(YEAR(JunSun1+32)=KalendarskaGodina,MONTH(JunSun1+32)=6),JunSun1+32,\"\"))","v":"2022-06-30"},{"$f":"IF(DAY(JunSun1)=1,IF(AND(YEAR(JunSun1+26)=KalendarskaGodina,MONTH(JunSun1+26)=6),JunSun1+26,\"\"),IF(AND(YEAR(JunSun1+33)=KalendarskaGodina,MONTH(JunSun1+33)=6),JunSun1+33,\"\"))","v":""},{"$f":"IF(DAY(JunSun1)=1,IF(AND(YEAR(JunSun1+27)=KalendarskaGodina,MONTH(JunSun1+27)=6),JunSun1+27,\"\"),IF(AND(YEAR(JunSun1+34)=KalendarskaGodina,MONTH(JunSun1+34)=6),JunSun1+34,\"\"))","v":""},{"$f":"IF(DAY(JunSun1)=1,IF(AND(YEAR(JunSun1+28)=KalendarskaGodina,MONTH(JunSun1+28)=6),JunSun1+28,\"\"),IF(AND(YEAR(JunSun1+35)=KalendarskaGodina,MONTH(JunSun1+35)=6),JunSun1+35,\"\"))","v":""}]
[null,null,{"$f":"IF(DAY(MaySun1)=1,IF(AND(YEAR(MaySun1+29)=KalendarskaGodina,MONTH(MaySun1+29)=5),MaySun1+29,\"\"),IF(AND(YEAR(MaySun1+36)=KalendarskaGodina,MONTH(MaySun1+36)=5),MaySun1+36,\"\"))","v":"2022-05-30"},{"$f":"IF(DAY(MaySun1)=1,IF(AND(YEAR(MaySun1+30)=KalendarskaGodina,MONTH(MaySun1+30)=5),MaySun1+30,\"\"),IF(AND(YEAR(MaySun1+37)=KalendarskaGodina,MONTH(MaySun1+37)=5),MaySun1+37,\"\"))","v":"2022-05-31"},{"$f":"IF(DAY(MaySun1)=1,IF(AND(YEAR(MaySun1+31)=KalendarskaGodina,MONTH(MaySun1+31)=5),MaySun1+31,\"\"),IF(AND(YEAR(MaySun1+38)=KalendarskaGodina,MONTH(MaySun1+38)=5),MaySun1+38,\"\"))","v":""},{"$f":"IF(DAY(MaySun1)=1,IF(AND(YEAR(MaySun1+32)=KalendarskaGodina,MONTH(MaySun1+32)=5),MaySun1+32,\"\"),IF(AND(YEAR(MaySun1+39)=KalendarskaGodina,MONTH(MaySun1+39)=5),MaySun1+39,\"\"))","v":""},{"$f":"IF(DAY(MaySun1)=1,IF(AND(YEAR(MaySun1+33)=KalendarskaGodina,MONTH(MaySun1+33)=5),MaySun1+33,\"\"),IF(AND(YEAR(MaySun1+40)=KalendarskaGodina,MONTH(MaySun1+40)=5),MaySun1+40,\"\"))","v":""},{"$f":"IF(DAY(MaySun1)=1,IF(AND(YEAR(MaySun1+34)=KalendarskaGodina,MONTH(MaySun1+34)=5),MaySun1+34,\"\"),IF(AND(YEAR(MaySun1+41)=KalendarskaGodina,MONTH(MaySun1+41)=5),MaySun1+41,\"\"))","v":""},{"$f":"IF(DAY(MaySun1)=1,IF(AND(YEAR(MaySun1+35)=KalendarskaGodina,MONTH(MaySun1+35)=5),MaySun1+35,\"\"),IF(AND(YEAR(MaySun1+42)=KalendarskaGodina,MONTH(MaySun1+42)=5),MaySun1+42,\"\"))","v":""},null,{"$f":"IF(DAY(JunSun1)=1,IF(AND(YEAR(JunSun1+29)=KalendarskaGodina,MONTH(JunSun1+29)=6),JunSun1+29,\"\"),IF(AND(YEAR(JunSun1+36)=KalendarskaGodina,MONTH(JunSun1+36)=6),JunSun1+36,\"\"))","v":""},{"$f":"IF(DAY(JunSun1)=1,IF(AND(YEAR(JunSun1+30)=KalendarskaGodina,MONTH(JunSun1+30)=6),JunSun1+30,\"\"),IF(AND(YEAR(JunSun1+37)=KalendarskaGodina,MONTH(JunSun1+37)=6),JunSun1+37,\"\"))","v":""},{"$f":"IF(DAY(JunSun1)=1,IF(AND(YEAR(JunSun1+31)=KalendarskaGodina,MONTH(JunSun1+31)=6),JunSun1+31,\"\"),IF(AND(YEAR(JunSun1+38)=KalendarskaGodina,MONTH(JunSun1+38)=6),JunSun1+38,\"\"))","v":""},{"$f":"IF(DAY(JunSun1)=1,IF(AND(YEAR(JunSun1+32)=KalendarskaGodina,MONTH(JunSun1+32)=6),JunSun1+32,\"\"),IF(AND(YEAR(JunSun1+39)=KalendarskaGodina,MONTH(JunSun1+39)=6),JunSun1+39,\"\"))","v":""},{"$f":"IF(DAY(JunSun1)=1,IF(AND(YEAR(JunSun1+33)=KalendarskaGodina,MONTH(JunSun1+33)=6),JunSun1+33,\"\"),IF(AND(YEAR(JunSun1+40)=KalendarskaGodina,MONTH(JunSun1+40)=6),JunSun1+40,\"\"))","v":""},{"$f":"IF(DAY(JunSun1)=1,IF(AND(YEAR(JunSun1+34)=KalendarskaGodina,MONTH(JunSun1+34)=6),JunSun1+34,\"\"),IF(AND(YEAR(JunSun1+41)=KalendarskaGodina,MONTH(JunSun1+41)=6),JunSun1+41,\"\"))","v":""},{"$f":"IF(DAY(JunSun1)=1,IF(AND(YEAR(JunSun1+35)=KalendarskaGodina,MONTH(JunSun1+35)=6),JunSun1+35,\"\"),IF(AND(YEAR(JunSun1+42)=KalendarskaGodina,MONTH(JunSun1+42)=6),JunSun1+42,\"\"))","v":""}]
[]
["Oznaka za jul se nalazi u ćeliji C30 i za avgust u ćeliji K30",null,"JUL",{"$nulls":7},"AVGUST"]
["Tabela julskog kalendara je u ćelijama od C31 do I37 i tabela avgustovskog kalendara u ćelijama od K31 do Q37. Sledeće uputstvo se nalazi u ćeliji A39.",null,"PON","UT","SR","ČET","PET","SUB","NED",null,"PON","UT","SR","ČET","PET","SUB","NED"]
[null,null,{"$f":"IF(DAY(JulSun1)=1,\"\",IF(AND(YEAR(JulSun1+1)=KalendarskaGodina,MONTH(JulSun1+1)=7),JulSun1+1,\"\"))","v":""},{"$f":"IF(DAY(JulSun1)=1,\"\",IF(AND(YEAR(JulSun1+2)=KalendarskaGodina,MONTH(JulSun1+2)=7),JulSun1+2,\"\"))","v":""},{"$f":"IF(DAY(JulSun1)=1,\"\",IF(AND(YEAR(JulSun1+3)=KalendarskaGodina,MONTH(JulSun1+3)=7),JulSun1+3,\"\"))","v":""},{"$f":"IF(DAY(JulSun1)=1,\"\",IF(AND(YEAR(JulSun1+4)=KalendarskaGodina,MONTH(JulSun1+4)=7),JulSun1+4,\"\"))","v":""},{"$f":"IF(DAY(JulSun1)=1,\"\",IF(AND(YEAR(JulSun1+5)=KalendarskaGodina,MONTH(JulSun1+5)=7),JulSun1+5,\"\"))","v":"2022-07-01"},{"$f":"IF(DAY(JulSun1)=1,\"\",IF(AND(YEAR(JulSun1+6)=KalendarskaGodina,MONTH(JulSun1+6)=7),JulSun1+6,\"\"))","v":"2022-07-02"},{"$f":"IF(DAY(JulSun1)=1,IF(AND(YEAR(JulSun1)=KalendarskaGodina,MONTH(JulSun1)=7),JulSun1,\"\"),IF(AND(YEAR(JulSun1+7)=KalendarskaGodina,MONTH(JulSun1+7)=7),JulSun1+7,\"\"))","v":"2022-07-03"},null,{"$f":"IF(DAY(AvgNed1)=1,\"\",IF(AND(YEAR(AvgNed1+1)=KalendarskaGodina,MONTH(AvgNed1+1)=8),AvgNed1+1,\"\"))","v":"2022-08-01"},{"$f":"IF(DAY(AvgNed1)=1,\"\",IF(AND(YEAR(AvgNed1+2)=KalendarskaGodina,MONTH(AvgNed1+2)=8),AvgNed1+2,\"\"))","v":"2022-08-02"},{"$f":"IF(DAY(AvgNed1)=1,\"\",IF(AND(YEAR(AvgNed1+3)=KalendarskaGodina,MONTH(AvgNed1+3)=8),AvgNed1+3,\"\"))","v":"2022-08-03"},{"$f":"IF(DAY(AvgNed1)=1,\"\",IF(AND(YEAR(AvgNed1+4)=KalendarskaGodina,MONTH(AvgNed1+4)=8),AvgNed1+4,\"\"))","v":"2022-08-04"},{"$f":"IF(DAY(AvgNed1)=1,\"\",IF(AND(YEAR(AvgNed1+5)=KalendarskaGodina,MONTH(AvgNed1+5)=8),AvgNed1+5,\"\"))","v":"2022-08-05"},{"$f":"IF(DAY(AvgNed1)=1,\"\",IF(AND(YEAR(AvgNed1+6)=KalendarskaGodina,MONTH(AvgNed1+6)=8),AvgNed1+6,\"\"))","v":"2022-08-06"},{"$f":"IF(DAY(AvgNed1)=1,IF(AND(YEAR(AvgNed1)=KalendarskaGodina,MONTH(AvgNed1)=8),AvgNed1,\"\"),IF(AND(YEAR(AvgNed1+7)=KalendarskaGodina,MONTH(AvgNed1+7)=8),AvgNed1+7,\"\"))","v":"2022-08-07"}]
[null,null,{"$f":"IF(DAY(JulSun1)=1,IF(AND(YEAR(JulSun1+1)=KalendarskaGodina,MONTH(JulSun1+1)=7),JulSun1+1,\"\"),IF(AND(YEAR(JulSun1+8)=KalendarskaGodina,MONTH(JulSun1+8)=7),JulSun1+8,\"\"))","v":"2022-07-04"},{"$f":"IF(DAY(JulSun1)=1,IF(AND(YEAR(JulSun1+2)=KalendarskaGodina,MONTH(JulSun1+2)=7),JulSun1+2,\"\"),IF(AND(YEAR(JulSun1+9)=KalendarskaGodina,MONTH(JulSun1+9)=7),JulSun1+9,\"\"))","v":"2022-07-05"},{"$f":"IF(DAY(JulSun1)=1,IF(AND(YEAR(JulSun1+3)=KalendarskaGodina,MONTH(JulSun1+3)=7),JulSun1+3,\"\"),IF(AND(YEAR(JulSun1+10)=KalendarskaGodina,MONTH(JulSun1+10)=7),JulSun1+10,\"\"))","v":"2022-07-06"},{"$f":"IF(DAY(JulSun1)=1,IF(AND(YEAR(JulSun1+4)=KalendarskaGodina,MONTH(JulSun1+4)=7),JulSun1+4,\"\"),IF(AND(YEAR(JulSun1+11)=KalendarskaGodina,MONTH(JulSun1+11)=7),JulSun1+11,\"\"))","v":"2022-07-07"},{"$f":"IF(DAY(JulSun1)=1,IF(AND(YEAR(JulSun1+5)=KalendarskaGodina,MONTH(JulSun1+5)=7),JulSun1+5,\"\"),IF(AND(YEAR(JulSun1+12)=KalendarskaGodina,MONTH(JulSun1+12)=7),JulSun1+12,\"\"))","v":"2022-07-08"},{"$f":"IF(DAY(JulSun1)=1,IF(AND(YEAR(JulSun1+6)=KalendarskaGodina,MONTH(JulSun1+6)=7),JulSun1+6,\"\"),IF(AND(YEAR(JulSun1+13)=KalendarskaGodina,MONTH(JulSun1+13)=7),JulSun1+13,\"\"))","v":"2022-07-09"},{"$f":"IF(DAY(JulSun1)=1,IF(AND(YEAR(JulSun1+7)=KalendarskaGodina,MONTH(JulSun1+7)=7),JulSun1+7,\"\"),IF(AND(YEAR(JulSun1+14)=KalendarskaGodina,MONTH(JulSun1+14)=7),JulSun1+14,\"\"))","v":"2022-07-10"},null,{"$f":"IF(DAY(AvgNed1)=1,IF(AND(YEAR(AvgNed1+1)=KalendarskaGodina,MONTH(AvgNed1+1)=8),AvgNed1+1,\"\"),IF(AND(YEAR(AvgNed1+8)=KalendarskaGodina,MONTH(AvgNed1+8)=8),AvgNed1+8,\"\"))","v":"2022-08-08"},{"$f":"IF(DAY(AvgNed1)=1,IF(AND(YEAR(AvgNed1+2)=KalendarskaGodina,MONTH(AvgNed1+2)=8),AvgNed1+2,\"\"),IF(AND(YEAR(AvgNed1+9)=KalendarskaGodina,MONTH(AvgNed1+9)=8),AvgNed1+9,\"\"))","v":"2022-08-09"},{"$f":"IF(DAY(AvgNed1)=1,IF(AND(YEAR(AvgNed1+3)=KalendarskaGodina,MONTH(AvgNed1+3)=8),AvgNed1+3,\"\"),IF(AND(YEAR(AvgNed1+10)=KalendarskaGodina,MONTH(AvgNed1+10)=8),AvgNed1+10,\"\"))","v":"2022-08-10"},{"$f":"IF(DAY(AvgNed1)=1,IF(AND(YEAR(AvgNed1+4)=KalendarskaGodina,MONTH(AvgNed1+4)=8),AvgNed1+4,\"\"),IF(AND(YEAR(AvgNed1+11)=KalendarskaGodina,MONTH(AvgNed1+11)=8),AvgNed1+11,\"\"))","v":"2022-08-11"},{"$f":"IF(DAY(AvgNed1)=1,IF(AND(YEAR(AvgNed1+5)=KalendarskaGodina,MONTH(AvgNed1+5)=8),AvgNed1+5,\"\"),IF(AND(YEAR(AvgNed1+12)=KalendarskaGodina,MONTH(AvgNed1+12)=8),AvgNed1+12,\"\"))","v":"2022-08-12"},{"$f":"IF(DAY(AvgNed1)=1,IF(AND(YEAR(AvgNed1+6)=KalendarskaGodina,MONTH(AvgNed1+6)=8),AvgNed1+6,\"\"),IF(AND(YEAR(AvgNed1+13)=KalendarskaGodina,MONTH(AvgNed1+13)=8),AvgNed1+13,\"\"))","v":"2022-08-13"},{"$f":"IF(DAY(AvgNed1)=1,IF(AND(YEAR(AvgNed1+7)=KalendarskaGodina,MONTH(AvgNed1+7)=8),AvgNed1+7,\"\"),IF(AND(YEAR(AvgNed1+14)=KalendarskaGodina,MONTH(AvgNed1+14)=8),AvgNed1+14,\"\"))","v":"2022-08-14"}]
[null,null,{"$f":"IF(DAY(JulSun1)=1,IF(AND(YEAR(JulSun1+8)=KalendarskaGodina,MONTH(JulSun1+8)=7),JulSun1+8,\"\"),IF(AND(YEAR(JulSun1+15)=KalendarskaGodina,MONTH(JulSun1+15)=7),JulSun1+15,\"\"))","v":"2022-07-11"},{"$f":"IF(DAY(JulSun1)=1,IF(AND(YEAR(JulSun1+9)=KalendarskaGodina,MONTH(JulSun1+9)=7),JulSun1+9,\"\"),IF(AND(YEAR(JulSun1+16)=KalendarskaGodina,MONTH(JulSun1+16)=7),JulSun1+16,\"\"))","v":"2022-07-12"},{"$f":"IF(DAY(JulSun1)=1,IF(AND(YEAR(JulSun1+10)=KalendarskaGodina,MONTH(JulSun1+10)=7),JulSun1+10,\"\"),IF(AND(YEAR(JulSun1+17)=KalendarskaGodina,MONTH(JulSun1+17)=7),JulSun1+17,\"\"))","v":"2022-07-13"},{"$f":"IF(DAY(JulSun1)=1,IF(AND(YEAR(JulSun1+11)=KalendarskaGodina,MONTH(JulSun1+11)=7),JulSun1+11,\"\"),IF(AND(YEAR(JulSun1+18)=KalendarskaGodina,MONTH(JulSun1+18)=7),JulSun1+18,\"\"))","v":"2022-07-14"},{"$f":"IF(DAY(JulSun1)=1,IF(AND(YEAR(JulSun1+12)=KalendarskaGodina,MONTH(JulSun1+12)=7),JulSun1+12,\"\"),IF(AND(YEAR(JulSun1+19)=KalendarskaGodina,MONTH(JulSun1+19)=7),JulSun1+19,\"\"))","v":"2022-07-15"},{"$f":"IF(DAY(JulSun1)=1,IF(AND(YEAR(JulSun1+13)=KalendarskaGodina,MONTH(JulSun1+13)=7),JulSun1+13,\"\"),IF(AND(YEAR(JulSun1+20)=KalendarskaGodina,MONTH(JulSun1+20)=7),JulSun1+20,\"\"))","v":"2022-07-16"},{"$f":"IF(DAY(JulSun1)=1,IF(AND(YEAR(JulSun1+14)=KalendarskaGodina,MONTH(JulSun1+14)=7),JulSun1+14,\"\"),IF(AND(YEAR(JulSun1+21)=KalendarskaGodina,MONTH(JulSun1+21)=7),JulSun1+21,\"\"))","v":"2022-07-17"},null,{"$f":"IF(DAY(AvgNed1)=1,IF(AND(YEAR(AvgNed1+8)=KalendarskaGodina,MONTH(AvgNed1+8)=8),AvgNed1+8,\"\"),IF(AND(YEAR(AvgNed1+15)=KalendarskaGodina,MONTH(AvgNed1+15)=8),AvgNed1+15,\"\"))","v":"2022-08-15"},{"$f":"IF(DAY(AvgNed1)=1,IF(AND(YEAR(AvgNed1+9)=KalendarskaGodina,MONTH(AvgNed1+9)=8),AvgNed1+9,\"\"),IF(AND(YEAR(AvgNed1+16)=KalendarskaGodina,MONTH(AvgNed1+16)=8),AvgNed1+16,\"\"))","v":"2022-08-16"},{"$f":"IF(DAY(AvgNed1)=1,IF(AND(YEAR(AvgNed1+10)=KalendarskaGodina,MONTH(AvgNed1+10)=8),AvgNed1+10,\"\"),IF(AND(YEAR(AvgNed1+17)=KalendarskaGodina,MONTH(AvgNed1+17)=8),AvgNed1+17,\"\"))","v":"2022-08-17"},{"$f":"IF(DAY(AvgNed1)=1,IF(AND(YEAR(AvgNed1+11)=KalendarskaGodina,MONTH(AvgNed1+11)=8),AvgNed1+11,\"\"),IF(AND(YEAR(AvgNed1+18)=KalendarskaGodina,MONTH(AvgNed1+18)=8),AvgNed1+18,\"\"))","v":"2022-08-18"},{"$f":"IF(DAY(AvgNed1)=1,IF(AND(YEAR(AvgNed1+12)=KalendarskaGodina,MONTH(AvgNed1+12)=8),AvgNed1+12,\"\"),IF(AND(YEAR(AvgNed1+19)=KalendarskaGodina,MONTH(AvgNed1+19)=8),AvgNed1+19,\"\"))","v":"2022-08-19"},{"$f":"IF(DAY(AvgNed1)=1,IF(AND(YEAR(AvgNed1+13)=KalendarskaGodina,MONTH(AvgNed1+13)=8),AvgNed1+13,\"\"),IF(AND(YEAR(AvgNed1+20)=KalendarskaGodina,MONTH(AvgNed1+20)=8),AvgNed1+20,\"\"))","v":"2022-08-20"},{"$f":"IF(DAY(AvgNed1)=1,IF(AND(YEAR(AvgNed1+14)=KalendarskaGodina,MONTH(AvgNed1+14)=8),AvgNed1+14,\"\"),IF(AND(YEAR(AvgNed1+21)=KalendarskaGodina,MONTH(AvgNed1+21)=8),AvgNed1+21,\"\"))","v":"2022-08-21"}]
[null,null,{"$f":"IF(DAY(JulSun1)=1,IF(AND(YEAR(JulSun1+15)=KalendarskaGodina,MONTH(JulSun1+15)=7),JulSun1+15,\"\"),IF(AND(YEAR(JulSun1+22)=KalendarskaGodina,MONTH(JulSun1+22)=7),JulSun1+22,\"\"))","v":"2022-07-18"},{"$f":"IF(DAY(JulSun1)=1,IF(AND(YEAR(JulSun1+16)=KalendarskaGodina,MONTH(JulSun1+16)=7),JulSun1+16,\"\"),IF(AND(YEAR(JulSun1+23)=KalendarskaGodina,MONTH(JulSun1+23)=7),JulSun1+23,\"\"))","v":"2022-07-19"},{"$f":"IF(DAY(JulSun1)=1,IF(AND(YEAR(JulSun1+17)=KalendarskaGodina,MONTH(JulSun1+17)=7),JulSun1+17,\"\"),IF(AND(YEAR(JulSun1+24)=KalendarskaGodina,MONTH(JulSun1+24)=7),JulSun1+24,\"\"))","v":"2022-07-20"},{"$f":"IF(DAY(JulSun1)=1,IF(AND(YEAR(JulSun1+18)=KalendarskaGodina,MONTH(JulSun1+18)=7),JulSun1+18,\"\"),IF(AND(YEAR(JulSun1+25)=KalendarskaGodina,MONTH(JulSun1+25)=7),JulSun1+25,\"\"))","v":"2022-07-21"},{"$f":"IF(DAY(JulSun1)=1,IF(AND(YEAR(JulSun1+19)=KalendarskaGodina,MONTH(JulSun1+19)=7),JulSun1+19,\"\"),IF(AND(YEAR(JulSun1+26)=KalendarskaGodina,MONTH(JulSun1+26)=7),JulSun1+26,\"\"))","v":"2022-07-22"},{"$f":"IF(DAY(JulSun1)=1,IF(AND(YEAR(JulSun1+20)=KalendarskaGodina,MONTH(JulSun1+20)=7),JulSun1+20,\"\"),IF(AND(YEAR(JulSun1+27)=KalendarskaGodina,MONTH(JulSun1+27)=7),JulSun1+27,\"\"))","v":"2022-07-23"},{"$f":"IF(DAY(JulSun1)=1,IF(AND(YEAR(JulSun1+21)=KalendarskaGodina,MONTH(JulSun1+21)=7),JulSun1+21,\"\"),IF(AND(YEAR(JulSun1+28)=KalendarskaGodina,MONTH(JulSun1+28)=7),JulSun1+28,\"\"))","v":"2022-07-24"},null,{"$f":"IF(DAY(AvgNed1)=1,IF(AND(YEAR(AvgNed1+15)=KalendarskaGodina,MONTH(AvgNed1+15)=8),AvgNed1+15,\"\"),IF(AND(YEAR(AvgNed1+22)=KalendarskaGodina,MONTH(AvgNed1+22)=8),AvgNed1+22,\"\"))","v":"2022-08-22"},{"$f":"IF(DAY(AvgNed1)=1,IF(AND(YEAR(AvgNed1+16)=KalendarskaGodina,MONTH(AvgNed1+16)=8),AvgNed1+16,\"\"),IF(AND(YEAR(AvgNed1+23)=KalendarskaGodina,MONTH(AvgNed1+23)=8),AvgNed1+23,\"\"))","v":"2022-08-23"},{"$f":"IF(DAY(AvgNed1)=1,IF(AND(YEAR(AvgNed1+17)=KalendarskaGodina,MONTH(AvgNed1+17)=8),AvgNed1+17,\"\"),IF(AND(YEAR(AvgNed1+24)=KalendarskaGodina,MONTH(AvgNed1+24)=8),AvgNed1+24,\"\"))","v":"2022-08-24"},{"$f":"IF(DAY(AvgNed1)=1,IF(AND(YEAR(AvgNed1+18)=KalendarskaGodina,MONTH(AvgNed1+18)=8),AvgNed1+18,\"\"),IF(AND(YEAR(AvgNed1+25)=KalendarskaGodina,MONTH(AvgNed1+25)=8),AvgNed1+25,\"\"))","v":"2022-08-25"},{"$f":"IF(DAY(AvgNed1)=1,IF(AND(YEAR(AvgNed1+19)=KalendarskaGodina,MONTH(AvgNed1+19)=8),AvgNed1+19,\"\"),IF(AND(YEAR(AvgNed1+26)=KalendarskaGodina,MONTH(AvgNed1+26)=8),AvgNed1+26,\"\"))","v":"2022-08-26"},{"$f":"IF(DAY(AvgNed1)=1,IF(AND(YEAR(AvgNed1+20)=KalendarskaGodina,MONTH(AvgNed1+20)=8),AvgNed1+20,\"\"),IF(AND(YEAR(AvgNed1+27)=KalendarskaGodina,MONTH(AvgNed1+27)=8),AvgNed1+27,\"\"))","v":"2022-08-27"},{"$f":"IF(DAY(AvgNed1)=1,IF(AND(YEAR(AvgNed1+21)=KalendarskaGodina,MONTH(AvgNed1+21)=8),AvgNed1+21,\"\"),IF(AND(YEAR(AvgNed1+28)=KalendarskaGodina,MONTH(AvgNed1+28)=8),AvgNed1+28,\"\"))","v":"2022-08-28"}]
[null,null,{"$f":"IF(DAY(JulSun1)=1,IF(AND(YEAR(JulSun1+22)=KalendarskaGodina,MONTH(JulSun1+22)=7),JulSun1+22,\"\"),IF(AND(YEAR(JulSun1+29)=KalendarskaGodina,MONTH(JulSun1+29)=7),JulSun1+29,\"\"))","v":"2022-07-25"},{"$f":"IF(DAY(JulSun1)=1,IF(AND(YEAR(JulSun1+23)=KalendarskaGodina,MONTH(JulSun1+23)=7),JulSun1+23,\"\"),IF(AND(YEAR(JulSun1+30)=KalendarskaGodina,MONTH(JulSun1+30)=7),JulSun1+30,\"\"))","v":"2022-07-26"},{"$f":"IF(DAY(JulSun1)=1,IF(AND(YEAR(JulSun1+24)=KalendarskaGodina,MONTH(JulSun1+24)=7),JulSun1+24,\"\"),IF(AND(YEAR(JulSun1+31)=KalendarskaGodina,MONTH(JulSun1+31)=7),JulSun1+31,\"\"))","v":"2022-07-27"},{"$f":"IF(DAY(JulSun1)=1,IF(AND(YEAR(JulSun1+25)=KalendarskaGodina,MONTH(JulSun1+25)=7),JulSun1+25,\"\"),IF(AND(YEAR(JulSun1+32)=KalendarskaGodina,MONTH(JulSun1+32)=7),JulSun1+32,\"\"))","v":"2022-07-28"},{"$f":"IF(DAY(JulSun1)=1,IF(AND(YEAR(JulSun1+26)=KalendarskaGodina,MONTH(JulSun1+26)=7),JulSun1+26,\"\"),IF(AND(YEAR(JulSun1+33)=KalendarskaGodina,MONTH(JulSun1+33)=7),JulSun1+33,\"\"))","v":"2022-07-29"},{"$f":"IF(DAY(JulSun1)=1,IF(AND(YEAR(JulSun1+27)=KalendarskaGodina,MONTH(JulSun1+27)=7),JulSun1+27,\"\"),IF(AND(YEAR(JulSun1+34)=KalendarskaGodina,MONTH(JulSun1+34)=7),JulSun1+34,\"\"))","v":"2022-07-30"},{"$f":"IF(DAY(JulSun1)=1,IF(AND(YEAR(JulSun1+28)=KalendarskaGodina,MONTH(JulSun1+28)=7),JulSun1+28,\"\"),IF(AND(YEAR(JulSun1+35)=KalendarskaGodina,MONTH(JulSun1+35)=7),JulSun1+35,\"\"))","v":"2022-07-31"},null,{"$f":"IF(DAY(AvgNed1)=1,IF(AND(YEAR(AvgNed1+22)=KalendarskaGodina,MONTH(AvgNed1+22)=8),AvgNed1+22,\"\"),IF(AND(YEAR(AvgNed1+29)=KalendarskaGodina,MONTH(AvgNed1+29)=8),AvgNed1+29,\"\"))","v":"2022-08-29"},{"$f":"IF(DAY(AvgNed1)=1,IF(AND(YEAR(AvgNed1+23)=KalendarskaGodina,MONTH(AvgNed1+23)=8),AvgNed1+23,\"\"),IF(AND(YEAR(AvgNed1+30)=KalendarskaGodina,MONTH(AvgNed1+30)=8),AvgNed1+30,\"\"))","v":"2022-08-30"},{"$f":"IF(DAY(AvgNed1)=1,IF(AND(YEAR(AvgNed1+24)=KalendarskaGodina,MONTH(AvgNed1+24)=8),AvgNed1+24,\"\"),IF(AND(YEAR(AvgNed1+31)=KalendarskaGodina,MONTH(AvgNed1+31)=8),AvgNed1+31,\"\"))","v":"2022-08-31"},{"$f":"IF(DAY(AvgNed1)=1,IF(AND(YEAR(AvgNed1+25)=KalendarskaGodina,MONTH(AvgNed1+25)=8),AvgNed1+25,\"\"),IF(AND(YEAR(AvgNed1+32)=KalendarskaGodina,MONTH(AvgNed1+32)=8),AvgNed1+32,\"\"))","v":""},{"$f":"IF(DAY(AvgNed1)=1,IF(AND(YEAR(AvgNed1+26)=KalendarskaGodina,MONTH(AvgNed1+26)=8),AvgNed1+26,\"\"),IF(AND(YEAR(AvgNed1+33)=KalendarskaGodina,MONTH(AvgNed1+33)=8),AvgNed1+33,\"\"))","v":""},{"$f":"IF(DAY(AvgNed1)=1,IF(AND(YEAR(AvgNed1+27)=KalendarskaGodina,MONTH(AvgNed1+27)=8),AvgNed1+27,\"\"),IF(AND(YEAR(AvgNed1+34)=KalendarskaGodina,MONTH(AvgNed1+34)=8),AvgNed1+34,\"\"))","v":""},{"$f":"IF(DAY(AvgNed1)=1,IF(AND(YEAR(AvgNed1+28)=KalendarskaGodina,MONTH(AvgNed1+28)=8),AvgNed1+28,\"\"),IF(AND(YEAR(AvgNed1+35)=KalendarskaGodina,MONTH(AvgNed1+35)=8),AvgNed1+35,\"\"))","v":""}]
[null,null,{"$f":"IF(DAY(JulSun1)=1,IF(AND(YEAR(JulSun1+29)=KalendarskaGodina,MONTH(JulSun1+29)=7),JulSun1+29,\"\"),IF(AND(YEAR(JulSun1+36)=KalendarskaGodina,MONTH(JulSun1+36)=7),JulSun1+36,\"\"))","v":""},{"$f":"IF(DAY(JulSun1)=1,IF(AND(YEAR(JulSun1+30)=KalendarskaGodina,MONTH(JulSun1+30)=7),JulSun1+30,\"\"),IF(AND(YEAR(JulSun1+37)=KalendarskaGodina,MONTH(JulSun1+37)=7),JulSun1+37,\"\"))","v":""},{"$f":"IF(DAY(JulSun1)=1,IF(AND(YEAR(JulSun1+31)=KalendarskaGodina,MONTH(JulSun1+31)=7),JulSun1+31,\"\"),IF(AND(YEAR(JulSun1+38)=KalendarskaGodina,MONTH(JulSun1+38)=7),JulSun1+38,\"\"))","v":""},{"$f":"IF(DAY(JulSun1)=1,IF(AND(YEAR(JulSun1+32)=KalendarskaGodina,MONTH(JulSun1+32)=7),JulSun1+32,\"\"),IF(AND(YEAR(JulSun1+39)=KalendarskaGodina,MONTH(JulSun1+39)=7),JulSun1+39,\"\"))","v":""},{"$f":"IF(DAY(JulSun1)=1,IF(AND(YEAR(JulSun1+33)=KalendarskaGodina,MONTH(JulSun1+33)=7),JulSun1+33,\"\"),IF(AND(YEAR(JulSun1+40)=KalendarskaGodina,MONTH(JulSun1+40)=7),JulSun1+40,\"\"))","v":""},{"$f":"IF(DAY(JulSun1)=1,IF(AND(YEAR(JulSun1+34)=KalendarskaGodina,MONTH(JulSun1+34)=7),JulSun1+34,\"\"),IF(AND(YEAR(JulSun1+41)=KalendarskaGodina,MONTH(JulSun1+41)=7),JulSun1+41,\"\"))","v":""},{"$f":"IF(DAY(JulSun1)=1,IF(AND(YEAR(JulSun1+35)=KalendarskaGodina,MONTH(JulSun1+35)=7),JulSun1+35,\"\"),IF(AND(YEAR(JulSun1+42)=KalendarskaGodina,MONTH(JulSun1+42)=7),JulSun1+42,\"\"))","v":""},null,{"$f":"IF(DAY(AvgNed1)=1,IF(AND(YEAR(AvgNed1+29)=KalendarskaGodina,MONTH(AvgNed1+29)=8),AvgNed1+29,\"\"),IF(AND(YEAR(AvgNed1+36)=KalendarskaGodina,MONTH(AvgNed1+36)=8),AvgNed1+36,\"\"))","v":""},{"$f":"IF(DAY(AvgNed1)=1,IF(AND(YEAR(AvgNed1+30)=KalendarskaGodina,MONTH(AvgNed1+30)=8),AvgNed1+30,\"\"),IF(AND(YEAR(AvgNed1+37)=KalendarskaGodina,MONTH(AvgNed1+37)=8),AvgNed1+37,\"\"))","v":""},{"$f":"IF(DAY(AvgNed1)=1,IF(AND(YEAR(AvgNed1+31)=KalendarskaGodina,MONTH(AvgNed1+31)=8),AvgNed1+31,\"\"),IF(AND(YEAR(AvgNed1+38)=KalendarskaGodina,MONTH(AvgNed1+38)=8),AvgNed1+38,\"\"))","v":""},{"$f":"IF(DAY(AvgNed1)=1,IF(AND(YEAR(AvgNed1+32)=KalendarskaGodina,MONTH(AvgNed1+32)=8),AvgNed1+32,\"\"),IF(AND(YEAR(AvgNed1+39)=KalendarskaGodina,MONTH(AvgNed1+39)=8),AvgNed1+39,\"\"))","v":""},{"$f":"IF(DAY(AvgNed1)=1,IF(AND(YEAR(AvgNed1+33)=KalendarskaGodina,MONTH(AvgNed1+33)=8),AvgNed1+33,\"\"),IF(AND(YEAR(AvgNed1+40)=KalendarskaGodina,MONTH(AvgNed1+40)=8),AvgNed1+40,\"\"))","v":""},{"$f":"IF(DAY(AvgNed1)=1,IF(AND(YEAR(AvgNed1+34)=KalendarskaGodina,MONTH(AvgNed1+34)=8),AvgNed1+34,\"\"),IF(AND(YEAR(AvgNed1+41)=KalendarskaGodina,MONTH(AvgNed1+41)=8),AvgNed1+41,\"\"))","v":""},{"$f":"IF(DAY(AvgNed1)=1,IF(AND(YEAR(AvgNed1+35)=KalendarskaGodina,MONTH(AvgNed1+35)=8),AvgNed1+35,\"\"),IF(AND(YEAR(AvgNed1+42)=KalendarskaGodina,MONTH(AvgNed1+42)=8),AvgNed1+42,\"\"))","v":""}]
[]
["Oznaka za septembar se nalazi u ćeliji C39 i za oktobar u ćeliji K39",null,"SEPTEMBAR",{"$nulls":7},"OKTOBAR"]
["Tabela septembarskog kalendara je u ćelijama od C40 do I46 i oktobarskog kalendara u ćelijama od K40 do Q46. Sledeće uputstvo se nalazi u ćeliji A44.",null,"PON","UT","SR","ČET","PET","SUB","NED",null,"PON","UT","SR","ČET","PET","SUB","NED"]
[null,null,{"$f":"IF(DAY(SepSun1)=1,\"\",IF(AND(YEAR(SepSun1+1)=KalendarskaGodina,MONTH(SepSun1+1)=9),SepSun1+1,\"\"))","v":""},{"$f":"IF(DAY(SepSun1)=1,\"\",IF(AND(YEAR(SepSun1+2)=KalendarskaGodina,MONTH(SepSun1+2)=9),SepSun1+2,\"\"))","v":""},{"$f":"IF(DAY(SepSun1)=1,\"\",IF(AND(YEAR(SepSun1+3)=KalendarskaGodina,MONTH(SepSun1+3)=9),SepSun1+3,\"\"))","v":""},{"$f":"IF(DAY(SepSun1)=1,\"\",IF(AND(YEAR(SepSun1+4)=KalendarskaGodina,MONTH(SepSun1+4)=9),SepSun1+4,\"\"))","v":"2022-09-01"},{"$f":"IF(DAY(SepSun1)=1,\"\",IF(AND(YEAR(SepSun1+5)=KalendarskaGodina,MONTH(SepSun1+5)=9),SepSun1+5,\"\"))","v":"2022-09-02"},{"$f":"IF(DAY(SepSun1)=1,\"\",IF(AND(YEAR(SepSun1+6)=KalendarskaGodina,MONTH(SepSun1+6)=9),SepSun1+6,\"\"))","v":"2022-09-03"},{"$f":"IF(DAY(SepSun1)=1,IF(AND(YEAR(SepSun1)=KalendarskaGodina,MONTH(SepSun1)=9),SepSun1,\"\"),IF(AND(YEAR(SepSun1+7)=KalendarskaGodina,MONTH(SepSun1+7)=9),SepSun1+7,\"\"))","v":"2022-09-04"},null,{"$f":"IF(DAY(OctSun1)=1,\"\",IF(AND(YEAR(OctSun1+1)=KalendarskaGodina,MONTH(OctSun1+1)=10),OctSun1+1,\"\"))","v":""},{"$f":"IF(DAY(OctSun1)=1,\"\",IF(AND(YEAR(OctSun1+2)=KalendarskaGodina,MONTH(OctSun1+2)=10),OctSun1+2,\"\"))","v":""},{"$f":"IF(DAY(OctSun1)=1,\"\",IF(AND(YEAR(OctSun1+3)=KalendarskaGodina,MONTH(OctSun1+3)=10),OctSun1+3,\"\"))","v":""},{"$f":"IF(DAY(OctSun1)=1,\"\",IF(AND(YEAR(OctSun1+4)=KalendarskaGodina,MONTH(OctSun1+4)=10),OctSun1+4,\"\"))","v":""},{"$f":"IF(DAY(OctSun1)=1,\"\",IF(AND(YEAR(OctSun1+5)=KalendarskaGodina,MONTH(OctSun1+5)=10),OctSun1+5,\"\"))","v":""},{"$f":"IF(DAY(OctSun1)=1,\"\",IF(AND(YEAR(OctSun1+6)=KalendarskaGodina,MONTH(OctSun1+6)=10),OctSun1+6,\"\"))","v":"2022-10-01"},{"$f":"IF(DAY(OctSun1)=1,IF(AND(YEAR(OctSun1)=KalendarskaGodina,MONTH(OctSun1)=10),OctSun1,\"\"),IF(AND(YEAR(OctSun1+7)=KalendarskaGodina,MONTH(OctSun1+7)=10),OctSun1+7,\"\"))","v":"2022-10-02"}]
[null,null,{"$f":"IF(DAY(SepSun1)=1,IF(AND(YEAR(SepSun1+1)=KalendarskaGodina,MONTH(SepSun1+1)=9),SepSun1+1,\"\"),IF(AND(YEAR(SepSun1+8)=KalendarskaGodina,MONTH(SepSun1+8)=9),SepSun1+8,\"\"))","v":"2022-09-05"},{"$f":"IF(DAY(SepSun1)=1,IF(AND(YEAR(SepSun1+2)=KalendarskaGodina,MONTH(SepSun1+2)=9),SepSun1+2,\"\"),IF(AND(YEAR(SepSun1+9)=KalendarskaGodina,MONTH(SepSun1+9)=9),SepSun1+9,\"\"))","v":"2022-09-06"},{"$f":"IF(DAY(SepSun1)=1,IF(AND(YEAR(SepSun1+3)=KalendarskaGodina,MONTH(SepSun1+3)=9),SepSun1+3,\"\"),IF(AND(YEAR(SepSun1+10)=KalendarskaGodina,MONTH(SepSun1+10)=9),SepSun1+10,\"\"))","v":"2022-09-07"},{"$f":"IF(DAY(SepSun1)=1,IF(AND(YEAR(SepSun1+4)=KalendarskaGodina,MONTH(SepSun1+4)=9),SepSun1+4,\"\"),IF(AND(YEAR(SepSun1+11)=KalendarskaGodina,MONTH(SepSun1+11)=9),SepSun1+11,\"\"))","v":"2022-09-08"},{"$f":"IF(DAY(SepSun1)=1,IF(AND(YEAR(SepSun1+5)=KalendarskaGodina,MONTH(SepSun1+5)=9),SepSun1+5,\"\"),IF(AND(YEAR(SepSun1+12)=KalendarskaGodina,MONTH(SepSun1+12)=9),SepSun1+12,\"\"))","v":"2022-09-09"},{"$f":"IF(DAY(SepSun1)=1,IF(AND(YEAR(SepSun1+6)=KalendarskaGodina,MONTH(SepSun1+6)=9),SepSun1+6,\"\"),IF(AND(YEAR(SepSun1+13)=KalendarskaGodina,MONTH(SepSun1+13)=9),SepSun1+13,\"\"))","v":"2022-09-10"},{"$f":"IF(DAY(SepSun1)=1,IF(AND(YEAR(SepSun1+7)=KalendarskaGodina,MONTH(SepSun1+7)=9),SepSun1+7,\"\"),IF(AND(YEAR(SepSun1+14)=KalendarskaGodina,MONTH(SepSun1+14)=9),SepSun1+14,\"\"))","v":"2022-09-11"},null,{"$f":"IF(DAY(OctSun1)=1,IF(AND(YEAR(OctSun1+1)=KalendarskaGodina,MONTH(OctSun1+1)=10),OctSun1+1,\"\"),IF(AND(YEAR(OctSun1+8)=KalendarskaGodina,MONTH(OctSun1+8)=10),OctSun1+8,\"\"))","v":"2022-10-03"},{"$f":"IF(DAY(OctSun1)=1,IF(AND(YEAR(OctSun1+2)=KalendarskaGodina,MONTH(OctSun1+2)=10),OctSun1+2,\"\"),IF(AND(YEAR(OctSun1+9)=KalendarskaGodina,MONTH(OctSun1+9)=10),OctSun1+9,\"\"))","v":"2022-10-04"},{"$f":"IF(DAY(OctSun1)=1,IF(AND(YEAR(OctSun1+3)=KalendarskaGodina,MONTH(OctSun1+3)=10),OctSun1+3,\"\"),IF(AND(YEAR(OctSun1+10)=KalendarskaGodina,MONTH(OctSun1+10)=10),OctSun1+10,\"\"))","v":"2022-10-05"},{"$f":"IF(DAY(OctSun1)=1,IF(AND(YEAR(OctSun1+4)=KalendarskaGodina,MONTH(OctSun1+4)=10),OctSun1+4,\"\"),IF(AND(YEAR(OctSun1+11)=KalendarskaGodina,MONTH(OctSun1+11)=10),OctSun1+11,\"\"))","v":"2022-10-06"},{"$f":"IF(DAY(OctSun1)=1,IF(AND(YEAR(OctSun1+5)=KalendarskaGodina,MONTH(OctSun1+5)=10),OctSun1+5,\"\"),IF(AND(YEAR(OctSun1+12)=KalendarskaGodina,MONTH(OctSun1+12)=10),OctSun1+12,\"\"))","v":"2022-10-07"},{"$f":"IF(DAY(OctSun1)=1,IF(AND(YEAR(OctSun1+6)=KalendarskaGodina,MONTH(OctSun1+6)=10),OctSun1+6,\"\"),IF(AND(YEAR(OctSun1+13)=KalendarskaGodina,MONTH(OctSun1+13)=10),OctSun1+13,\"\"))","v":"2022-10-08"},{"$f":"IF(DAY(OctSun1)=1,IF(AND(YEAR(OctSun1+7)=KalendarskaGodina,MONTH(OctSun1+7)=10),OctSun1+7,\"\"),IF(AND(YEAR(OctSun1+14)=KalendarskaGodina,MONTH(OctSun1+14)=10),OctSun1+14,\"\"))","v":"2022-10-09"}]
[null,null,{"$f":"IF(DAY(SepSun1)=1,IF(AND(YEAR(SepSun1+8)=KalendarskaGodina,MONTH(SepSun1+8)=9),SepSun1+8,\"\"),IF(AND(YEAR(SepSun1+15)=KalendarskaGodina,MONTH(SepSun1+15)=9),SepSun1+15,\"\"))","v":"2022-09-12"},{"$f":"IF(DAY(SepSun1)=1,IF(AND(YEAR(SepSun1+9)=KalendarskaGodina,MONTH(SepSun1+9)=9),SepSun1+9,\"\"),IF(AND(YEAR(SepSun1+16)=KalendarskaGodina,MONTH(SepSun1+16)=9),SepSun1+16,\"\"))","v":"2022-09-13"},{"$f":"IF(DAY(SepSun1)=1,IF(AND(YEAR(SepSun1+10)=KalendarskaGodina,MONTH(SepSun1+10)=9),SepSun1+10,\"\"),IF(AND(YEAR(SepSun1+17)=KalendarskaGodina,MONTH(SepSun1+17)=9),SepSun1+17,\"\"))","v":"2022-09-14"},{"$f":"IF(DAY(SepSun1)=1,IF(AND(YEAR(SepSun1+11)=KalendarskaGodina,MONTH(SepSun1+11)=9),SepSun1+11,\"\"),IF(AND(YEAR(SepSun1+18)=KalendarskaGodina,MONTH(SepSun1+18)=9),SepSun1+18,\"\"))","v":"2022-09-15"},{"$f":"IF(DAY(SepSun1)=1,IF(AND(YEAR(SepSun1+12)=KalendarskaGodina,MONTH(SepSun1+12)=9),SepSun1+12,\"\"),IF(AND(YEAR(SepSun1+19)=KalendarskaGodina,MONTH(SepSun1+19)=9),SepSun1+19,\"\"))","v":"2022-09-16"},{"$f":"IF(DAY(SepSun1)=1,IF(AND(YEAR(SepSun1+13)=KalendarskaGodina,MONTH(SepSun1+13)=9),SepSun1+13,\"\"),IF(AND(YEAR(SepSun1+20)=KalendarskaGodina,MONTH(SepSun1+20)=9),SepSun1+20,\"\"))","v":"2022-09-17"},{"$f":"IF(DAY(SepSun1)=1,IF(AND(YEAR(SepSun1+14)=KalendarskaGodina,MONTH(SepSun1+14)=9),SepSun1+14,\"\"),IF(AND(YEAR(SepSun1+21)=KalendarskaGodina,MONTH(SepSun1+21)=9),SepSun1+21,\"\"))","v":"2022-09-18"},null,{"$f":"IF(DAY(OctSun1)=1,IF(AND(YEAR(OctSun1+8)=KalendarskaGodina,MONTH(OctSun1+8)=10),OctSun1+8,\"\"),IF(AND(YEAR(OctSun1+15)=KalendarskaGodina,MONTH(OctSun1+15)=10),OctSun1+15,\"\"))","v":"2022-10-10"},{"$f":"IF(DAY(OctSun1)=1,IF(AND(YEAR(OctSun1+9)=KalendarskaGodina,MONTH(OctSun1+9)=10),OctSun1+9,\"\"),IF(AND(YEAR(OctSun1+16)=KalendarskaGodina,MONTH(OctSun1+16)=10),OctSun1+16,\"\"))","v":"2022-10-11"},{"$f":"IF(DAY(OctSun1)=1,IF(AND(YEAR(OctSun1+10)=KalendarskaGodina,MONTH(OctSun1+10)=10),OctSun1+10,\"\"),IF(AND(YEAR(OctSun1+17)=KalendarskaGodina,MONTH(OctSun1+17)=10),OctSun1+17,\"\"))","v":"2022-10-12"},{"$f":"IF(DAY(OctSun1)=1,IF(AND(YEAR(OctSun1+11)=KalendarskaGodina,MONTH(OctSun1+11)=10),OctSun1+11,\"\"),IF(AND(YEAR(OctSun1+18)=KalendarskaGodina,MONTH(OctSun1+18)=10),OctSun1+18,\"\"))","v":"2022-10-13"},{"$f":"IF(DAY(OctSun1)=1,IF(AND(YEAR(OctSun1+12)=KalendarskaGodina,MONTH(OctSun1+12)=10),OctSun1+12,\"\"),IF(AND(YEAR(OctSun1+19)=KalendarskaGodina,MONTH(OctSun1+19)=10),OctSun1+19,\"\"))","v":"2022-10-14"},{"$f":"IF(DAY(OctSun1)=1,IF(AND(YEAR(OctSun1+13)=KalendarskaGodina,MONTH(OctSun1+13)=10),OctSun1+13,\"\"),IF(AND(YEAR(OctSun1+20)=KalendarskaGodina,MONTH(OctSun1+20)=10),OctSun1+20,\"\"))","v":"2022-10-15"},{"$f":"IF(DAY(OctSun1)=1,IF(AND(YEAR(OctSun1+14)=KalendarskaGodina,MONTH(OctSun1+14)=10),OctSun1+14,\"\"),IF(AND(YEAR(OctSun1+21)=KalendarskaGodina,MONTH(OctSun1+21)=10),OctSun1+21,\"\"))","v":"2022-10-16"}]
["Unesite ulicu i broj u ćeliju U44",null,{"$f":"IF(DAY(SepSun1)=1,IF(AND(YEAR(SepSun1+15)=KalendarskaGodina,MONTH(SepSun1+15)=9),SepSun1+15,\"\"),IF(AND(YEAR(SepSun1+22)=KalendarskaGodina,MONTH(SepSun1+22)=9),SepSun1+22,\"\"))","v":"2022-09-19"},{"$f":"IF(DAY(SepSun1)=1,IF(AND(YEAR(SepSun1+16)=KalendarskaGodina,MONTH(SepSun1+16)=9),SepSun1+16,\"\"),IF(AND(YEAR(SepSun1+23)=KalendarskaGodina,MONTH(SepSun1+23)=9),SepSun1+23,\"\"))","v":"2022-09-20"},{"$f":"IF(DAY(SepSun1)=1,IF(AND(YEAR(SepSun1+17)=KalendarskaGodina,MONTH(SepSun1+17)=9),SepSun1+17,\"\"),IF(AND(YEAR(SepSun1+24)=KalendarskaGodina,MONTH(SepSun1+24)=9),SepSun1+24,\"\"))","v":"2022-09-21"},{"$f":"IF(DAY(SepSun1)=1,IF(AND(YEAR(SepSun1+18)=KalendarskaGodina,MONTH(SepSun1+18)=9),SepSun1+18,\"\"),IF(AND(YEAR(SepSun1+25)=KalendarskaGodina,MONTH(SepSun1+25)=9),SepSun1+25,\"\"))","v":"2022-09-22"},{"$f":"IF(DAY(SepSun1)=1,IF(AND(YEAR(SepSun1+19)=KalendarskaGodina,MONTH(SepSun1+19)=9),SepSun1+19,\"\"),IF(AND(YEAR(SepSun1+26)=KalendarskaGodina,MONTH(SepSun1+26)=9),SepSun1+26,\"\"))","v":"2022-09-23"},{"$f":"IF(DAY(SepSun1)=1,IF(AND(YEAR(SepSun1+20)=KalendarskaGodina,MONTH(SepSun1+20)=9),SepSun1+20,\"\"),IF(AND(YEAR(SepSun1+27)=KalendarskaGodina,MONTH(SepSun1+27)=9),SepSun1+27,\"\"))","v":"2022-09-24"},{"$f":"IF(DAY(SepSun1)=1,IF(AND(YEAR(SepSun1+21)=KalendarskaGodina,MONTH(SepSun1+21)=9),SepSun1+21,\"\"),IF(AND(YEAR(SepSun1+28)=KalendarskaGodina,MONTH(SepSun1+28)=9),SepSun1+28,\"\"))","v":"2022-09-25"},null,{"$f":"IF(DAY(OctSun1)=1,IF(AND(YEAR(OctSun1+15)=KalendarskaGodina,MONTH(OctSun1+15)=10),OctSun1+15,\"\"),IF(AND(YEAR(OctSun1+22)=KalendarskaGodina,MONTH(OctSun1+22)=10),OctSun1+22,\"\"))","v":"2022-10-17"},{"$f":"IF(DAY(OctSun1)=1,IF(AND(YEAR(OctSun1+16)=KalendarskaGodina,MONTH(OctSun1+16)=10),OctSun1+16,\"\"),IF(AND(YEAR(OctSun1+23)=KalendarskaGodina,MONTH(OctSun1+23)=10),OctSun1+23,\"\"))","v":"2022-10-18"},{"$f":"IF(DAY(OctSun1)=1,IF(AND(YEAR(OctSun1+17)=KalendarskaGodina,MONTH(OctSun1+17)=10),OctSun1+17,\"\"),IF(AND(YEAR(OctSun1+24)=KalendarskaGodina,MONTH(OctSun1+24)=10),OctSun1+24,\"\"))","v":"2022-10-19"},{"$f":"IF(DAY(OctSun1)=1,IF(AND(YEAR(OctSun1+18)=KalendarskaGodina,MONTH(OctSun1+18)=10),OctSun1+18,\"\"),IF(AND(YEAR(OctSun1+25)=KalendarskaGodina,MONTH(OctSun1+25)=10),OctSun1+25,\"\"))","v":"2022-10-20"},{"$f":"IF(DAY(OctSun1)=1,IF(AND(YEAR(OctSun1+19)=KalendarskaGodina,MONTH(OctSun1+19)=10),OctSun1+19,\"\"),IF(AND(YEAR(OctSun1+26)=KalendarskaGodina,MONTH(OctSun1+26)=10),OctSun1+26,\"\"))","v":"2022-10-21"},{"$f":"IF(DAY(OctSun1)=1,IF(AND(YEAR(OctSun1+20)=KalendarskaGodina,MONTH(OctSun1+20)=10),OctSun1+20,\"\"),IF(AND(YEAR(OctSun1+27)=KalendarskaGodina,MONTH(OctSun1+27)=10),OctSun1+27,\"\"))","v":"2022-10-22"},{"$f":"IF(DAY(OctSun1)=1,IF(AND(YEAR(OctSun1+21)=KalendarskaGodina,MONTH(OctSun1+21)=10),OctSun1+21,\"\"),IF(AND(YEAR(OctSun1+28)=KalendarskaGodina,MONTH(OctSun1+28)=10),OctSun1+28,\"\"))","v":"2022-10-23"},{"$nulls":3},"Ulica i broj"]
["Unesite grad, državu i poštanski broj u ćeliju U45 Sledeće uputstvo se nalazi u ćeliji A47.",null,{"$f":"IF(DAY(SepSun1)=1,IF(AND(YEAR(SepSun1+22)=KalendarskaGodina,MONTH(SepSun1+22)=9),SepSun1+22,\"\"),IF(AND(YEAR(SepSun1+29)=KalendarskaGodina,MONTH(SepSun1+29)=9),SepSun1+29,\"\"))","v":"2022-09-26"},{"$f":"IF(DAY(SepSun1)=1,IF(AND(YEAR(SepSun1+23)=KalendarskaGodina,MONTH(SepSun1+23)=9),SepSun1+23,\"\"),IF(AND(YEAR(SepSun1+30)=KalendarskaGodina,MONTH(SepSun1+30)=9),SepSun1+30,\"\"))","v":"2022-09-27"},{"$f":"IF(DAY(SepSun1)=1,IF(AND(YEAR(SepSun1+24)=KalendarskaGodina,MONTH(SepSun1+24)=9),SepSun1+24,\"\"),IF(AND(YEAR(SepSun1+31)=KalendarskaGodina,MONTH(SepSun1+31)=9),SepSun1+31,\"\"))","v":"2022-09-28"},{"$f":"IF(DAY(SepSun1)=1,IF(AND(YEAR(SepSun1+25)=KalendarskaGodina,MONTH(SepSun1+25)=9),SepSun1+25,\"\"),IF(AND(YEAR(SepSun1+32)=KalendarskaGodina,MONTH(SepSun1+32)=9),SepSun1+32,\"\"))","v":"2022-09-29"},{"$f":"IF(DAY(SepSun1)=1,IF(AND(YEAR(SepSun1+26)=KalendarskaGodina,MONTH(SepSun1+26)=9),SepSun1+26,\"\"),IF(AND(YEAR(SepSun1+33)=KalendarskaGodina,MONTH(SepSun1+33)=9),SepSun1+33,\"\"))","v":"2022-09-30"},{"$f":"IF(DAY(SepSun1)=1,IF(AND(YEAR(SepSun1+27)=KalendarskaGodina,MONTH(SepSun1+27)=9),SepSun1+27,\"\"),IF(AND(YEAR(SepSun1+34)=KalendarskaGodina,MONTH(SepSun1+34)=9),SepSun1+34,\"\"))","v":""},{"$f":"IF(DAY(SepSun1)=1,IF(AND(YEAR(SepSun1+28)=KalendarskaGodina,MONTH(SepSun1+28)=9),SepSun1+28,\"\"),IF(AND(YEAR(SepSun1+35)=KalendarskaGodina,MONTH(SepSun1+35)=9),SepSun1+35,\"\"))","v":""},null,{"$f":"IF(DAY(OctSun1)=1,IF(AND(YEAR(OctSun1+22)=KalendarskaGodina,MONTH(OctSun1+22)=10),OctSun1+22,\"\"),IF(AND(YEAR(OctSun1+29)=KalendarskaGodina,MONTH(OctSun1+29)=10),OctSun1+29,\"\"))","v":"2022-10-24"},{"$f":"IF(DAY(OctSun1)=1,IF(AND(YEAR(OctSun1+23)=KalendarskaGodina,MONTH(OctSun1+23)=10),OctSun1+23,\"\"),IF(AND(YEAR(OctSun1+30)=KalendarskaGodina,MONTH(OctSun1+30)=10),OctSun1+30,\"\"))","v":"2022-10-25"},{"$f":"IF(DAY(OctSun1)=1,IF(AND(YEAR(OctSun1+24)=KalendarskaGodina,MONTH(OctSun1+24)=10),OctSun1+24,\"\"),IF(AND(YEAR(OctSun1+31)=KalendarskaGodina,MONTH(OctSun1+31)=10),OctSun1+31,\"\"))","v":"2022-10-26"},{"$f":"IF(DAY(OctSun1)=1,IF(AND(YEAR(OctSun1+25)=KalendarskaGodina,MONTH(OctSun1+25)=10),OctSun1+25,\"\"),IF(AND(YEAR(OctSun1+32)=KalendarskaGodina,MONTH(OctSun1+32)=10),OctSun1+32,\"\"))","v":"2022-10-27"},{"$f":"IF(DAY(OctSun1)=1,IF(AND(YEAR(OctSun1+26)=KalendarskaGodina,MONTH(OctSun1+26)=10),OctSun1+26,\"\"),IF(AND(YEAR(OctSun1+33)=KalendarskaGodina,MONTH(OctSun1+33)=10),OctSun1+33,\"\"))","v":"2022-10-28"},{"$f":"IF(DAY(OctSun1)=1,IF(AND(YEAR(OctSun1+27)=KalendarskaGodina,MONTH(OctSun1+27)=10),OctSun1+27,\"\"),IF(AND(YEAR(OctSun1+34)=KalendarskaGodina,MONTH(OctSun1+34)=10),OctSun1+34,\"\"))","v":"2022-10-29"},{"$f":"IF(DAY(OctSun1)=1,IF(AND(YEAR(OctSun1+28)=KalendarskaGodina,MONTH(OctSun1+28)=10),OctSun1+28,\"\"),IF(AND(YEAR(OctSun1+35)=KalendarskaGodina,MONTH(OctSun1+35)=10),OctSun1+35,\"\"))","v":"2022-10-30"},{"$nulls":3},"Grad, država, ZIP kôd"]
[null,null,{"$f":"IF(DAY(SepSun1)=1,IF(AND(YEAR(SepSun1+29)=KalendarskaGodina,MONTH(SepSun1+29)=9),SepSun1+29,\"\"),IF(AND(YEAR(SepSun1+36)=KalendarskaGodina,MONTH(SepSun1+36)=9),SepSun1+36,\"\"))","v":""},{"$f":"IF(DAY(SepSun1)=1,IF(AND(YEAR(SepSun1+30)=KalendarskaGodina,MONTH(SepSun1+30)=9),SepSun1+30,\"\"),IF(AND(YEAR(SepSun1+37)=KalendarskaGodina,MONTH(SepSun1+37)=9),SepSun1+37,\"\"))","v":""},{"$f":"IF(DAY(SepSun1)=1,IF(AND(YEAR(SepSun1+31)=KalendarskaGodina,MONTH(SepSun1+31)=9),SepSun1+31,\"\"),IF(AND(YEAR(SepSun1+38)=KalendarskaGodina,MONTH(SepSun1+38)=9),SepSun1+38,\"\"))","v":""},{"$f":"IF(DAY(SepSun1)=1,IF(AND(YEAR(SepSun1+32)=KalendarskaGodina,MONTH(SepSun1+32)=9),SepSun1+32,\"\"),IF(AND(YEAR(SepSun1+39)=KalendarskaGodina,MONTH(SepSun1+39)=9),SepSun1+39,\"\"))","v":""},{"$f":"IF(DAY(SepSun1)=1,IF(AND(YEAR(SepSun1+33)=KalendarskaGodina,MONTH(SepSun1+33)=9),SepSun1+33,\"\"),IF(AND(YEAR(SepSun1+40)=KalendarskaGodina,MONTH(SepSun1+40)=9),SepSun1+40,\"\"))","v":""},{"$f":"IF(DAY(SepSun1)=1,IF(AND(YEAR(SepSun1+34)=KalendarskaGodina,MONTH(SepSun1+34)=9),SepSun1+34,\"\"),IF(AND(YEAR(SepSun1+41)=KalendarskaGodina,MONTH(SepSun1+41)=9),SepSun1+41,\"\"))","v":""},{"$f":"IF(DAY(SepSun1)=1,IF(AND(YEAR(SepSun1+35)=KalendarskaGodina,MONTH(SepSun1+35)=9),SepSun1+35,\"\"),IF(AND(YEAR(SepSun1+42)=KalendarskaGodina,MONTH(SepSun1+42)=9),SepSun1+42,\"\"))","v":""},null,{"$f":"IF(DAY(OctSun1)=1,IF(AND(YEAR(OctSun1+29)=KalendarskaGodina,MONTH(OctSun1+29)=10),OctSun1+29,\"\"),IF(AND(YEAR(OctSun1+36)=KalendarskaGodina,MONTH(OctSun1+36)=10),OctSun1+36,\"\"))","v":"2022-10-31"},{"$f":"IF(DAY(OctSun1)=1,IF(AND(YEAR(OctSun1+30)=KalendarskaGodina,MONTH(OctSun1+30)=10),OctSun1+30,\"\"),IF(AND(YEAR(OctSun1+37)=KalendarskaGodina,MONTH(OctSun1+37)=10),OctSun1+37,\"\"))","v":""},{"$f":"IF(DAY(OctSun1)=1,IF(AND(YEAR(OctSun1+31)=KalendarskaGodina,MONTH(OctSun1+31)=10),OctSun1+31,\"\"),IF(AND(YEAR(OctSun1+38)=KalendarskaGodina,MONTH(OctSun1+38)=10),OctSun1+38,\"\"))","v":""},{"$f":"IF(DAY(OctSun1)=1,IF(AND(YEAR(OctSun1+32)=KalendarskaGodina,MONTH(OctSun1+32)=10),OctSun1+32,\"\"),IF(AND(YEAR(OctSun1+39)=KalendarskaGodina,MONTH(OctSun1+39)=10),OctSun1+39,\"\"))","v":""},{"$f":"IF(DAY(OctSun1)=1,IF(AND(YEAR(OctSun1+33)=KalendarskaGodina,MONTH(OctSun1+33)=10),OctSun1+33,\"\"),IF(AND(YEAR(OctSun1+40)=KalendarskaGodina,MONTH(OctSun1+40)=10),OctSun1+40,\"\"))","v":""},{"$f":"IF(DAY(OctSun1)=1,IF(AND(YEAR(OctSun1+34)=KalendarskaGodina,MONTH(OctSun1+34)=10),OctSun1+34,\"\"),IF(AND(YEAR(OctSun1+41)=KalendarskaGodina,MONTH(OctSun1+41)=10),OctSun1+41,\"\"))","v":""},{"$f":"IF(DAY(OctSun1)=1,IF(AND(YEAR(OctSun1+35)=KalendarskaGodina,MONTH(OctSun1+35)=10),OctSun1+35,\"\"),IF(AND(YEAR(OctSun1+42)=KalendarskaGodina,MONTH(OctSun1+42)=10),OctSun1+42,\"\"))","v":""}]
["Broj telefona preduzeća unesite u ćeliju U47.",{"$nulls":19},"Telefon"]
["Oznaka za novembar je u ćeliji C48 i decembar u ćeliji K48. Adresu e-pošte unesite u ćeliju U48",null,"NOVEMBAR",{"$nulls":7},"DECEMBAR",{"$nulls":9},"Adresa e-pošte"]
["Tabela novembarskog kalendara je u ćelijama od C49 do I55 i decembarskog kalendara u ćelijama od K49 do Q55. Sledeće uputstvo se nalazi u ćeliji A51.",null,"PON","UT","SR","ČET","PET","SUB","NED",null,"PON","UT","SR","ČET","PET","SUB","NED",{"$nulls":3},"Veb sajt"]
[null,null,{"$f":"IF(DAY(NovSun1)=1,\"\",IF(AND(YEAR(NovSun1+1)=KalendarskaGodina,MONTH(NovSun1+1)=11),NovSun1+1,\"\"))","v":""},{"$f":"IF(DAY(NovSun1)=1,\"\",IF(AND(YEAR(NovSun1+2)=KalendarskaGodina,MONTH(NovSun1+2)=11),NovSun1+2,\"\"))","v":"2022-11-01"},{"$f":"IF(DAY(NovSun1)=1,\"\",IF(AND(YEAR(NovSun1+3)=KalendarskaGodina,MONTH(NovSun1+3)=11),NovSun1+3,\"\"))","v":"2022-11-02"},{"$f":"IF(DAY(NovSun1)=1,\"\",IF(AND(YEAR(NovSun1+4)=KalendarskaGodina,MONTH(NovSun1+4)=11),NovSun1+4,\"\"))","v":"2022-11-03"},{"$f":"IF(DAY(NovSun1)=1,\"\",IF(AND(YEAR(NovSun1+5)=KalendarskaGodina,MONTH(NovSun1+5)=11),NovSun1+5,\"\"))","v":"2022-11-04"},{"$f":"IF(DAY(NovSun1)=1,\"\",IF(AND(YEAR(NovSun1+6)=KalendarskaGodina,MONTH(NovSun1+6)=11),NovSun1+6,\"\"))","v":"2022-11-05"},{"$f":"IF(DAY(NovSun1)=1,IF(AND(YEAR(NovSun1)=KalendarskaGodina,MONTH(NovSun1)=11),NovSun1,\"\"),IF(AND(YEAR(NovSun1+7)=KalendarskaGodina,MONTH(NovSun1+7)=11),NovSun1+7,\"\"))","v":"2022-11-06"},null,{"$f":"IF(DAY(DecSun1)=1,\"\",IF(AND(YEAR(DecSun1+1)=KalendarskaGodina,MONTH(DecSun1+1)=12),DecSun1+1,\"\"))","v":""},{"$f":"IF(DAY(DecSun1)=1,\"\",IF(AND(YEAR(DecSun1+2)=KalendarskaGodina,MONTH(DecSun1+2)=12),DecSun1+2,\"\"))","v":""},{"$f":"IF(DAY(DecSun1)=1,\"\",IF(AND(YEAR(DecSun1+3)=KalendarskaGodina,MONTH(DecSun1+3)=12),DecSun1+3,\"\"))","v":""},{"$f":"IF(DAY(DecSun1)=1,\"\",IF(AND(YEAR(DecSun1+4)=KalendarskaGodina,MONTH(DecSun1+4)=12),DecSun1+4,\"\"))","v":"2022-12-01"},{"$f":"IF(DAY(DecSun1)=1,\"\",IF(AND(YEAR(DecSun1+5)=KalendarskaGodina,MONTH(DecSun1+5)=12),DecSun1+5,\"\"))","v":"2022-12-02"},{"$f":"IF(DAY(DecSun1)=1,\"\",IF(AND(YEAR(DecSun1+6)=KalendarskaGodina,MONTH(DecSun1+6)=12),DecSun1+6,\"\"))","v":"2022-12-03"},{"$f":"IF(DAY(DecSun1)=1,IF(AND(YEAR(DecSun1)=KalendarskaGodina,MONTH(DecSun1)=12),DecSun1,\"\"),IF(AND(YEAR(DecSun1+7)=KalendarskaGodina,MONTH(DecSun1+7)=12),DecSun1+7,\"\"))","v":"2022-12-04"}]
["Dodajte logotip preduzeća u ćeliju U51",null,{"$f":"IF(DAY(NovSun1)=1,IF(AND(YEAR(NovSun1+1)=KalendarskaGodina,MONTH(NovSun1+1)=11),NovSun1+1,\"\"),IF(AND(YEAR(NovSun1+8)=KalendarskaGodina,MONTH(NovSun1+8)=11),NovSun1+8,\"\"))","v":"2022-11-07"},{"$f":"IF(DAY(NovSun1)=1,IF(AND(YEAR(NovSun1+2)=KalendarskaGodina,MONTH(NovSun1+2)=11),NovSun1+2,\"\"),IF(AND(YEAR(NovSun1+9)=KalendarskaGodina,MONTH(NovSun1+9)=11),NovSun1+9,\"\"))","v":"2022-11-08"},{"$f":"IF(DAY(NovSun1)=1,IF(AND(YEAR(NovSun1+3)=KalendarskaGodina,MONTH(NovSun1+3)=11),NovSun1+3,\"\"),IF(AND(YEAR(NovSun1+10)=KalendarskaGodina,MONTH(NovSun1+10)=11),NovSun1+10,\"\"))","v":"2022-11-09"},{"$f":"IF(DAY(NovSun1)=1,IF(AND(YEAR(NovSun1+4)=KalendarskaGodina,MONTH(NovSun1+4)=11),NovSun1+4,\"\"),IF(AND(YEAR(NovSun1+11)=KalendarskaGodina,MONTH(NovSun1+11)=11),NovSun1+11,\"\"))","v":"2022-11-10"},{"$f":"IF(DAY(NovSun1)=1,IF(AND(YEAR(NovSun1+5)=KalendarskaGodina,MONTH(NovSun1+5)=11),NovSun1+5,\"\"),IF(AND(YEAR(NovSun1+12)=KalendarskaGodina,MONTH(NovSun1+12)=11),NovSun1+12,\"\"))","v":"2022-11-11"},{"$f":"IF(DAY(NovSun1)=1,IF(AND(YEAR(NovSun1+6)=KalendarskaGodina,MONTH(NovSun1+6)=11),NovSun1+6,\"\"),IF(AND(YEAR(NovSun1+13)=KalendarskaGodina,MONTH(NovSun1+13)=11),NovSun1+13,\"\"))","v":"2022-11-12"},{"$f":"IF(DAY(NovSun1)=1,IF(AND(YEAR(NovSun1+7)=KalendarskaGodina,MONTH(NovSun1+7)=11),NovSun1+7,\"\"),IF(AND(YEAR(NovSun1+14)=KalendarskaGodina,MONTH(NovSun1+14)=11),NovSun1+14,\"\"))","v":"2022-11-13"},null,{"$f":"IF(DAY(DecSun1)=1,IF(AND(YEAR(DecSun1+1)=KalendarskaGodina,MONTH(DecSun1+1)=12),DecSun1+1,\"\"),IF(AND(YEAR(DecSun1+8)=KalendarskaGodina,MONTH(DecSun1+8)=12),DecSun1+8,\"\"))","v":"2022-12-05"},{"$f":"IF(DAY(DecSun1)=1,IF(AND(YEAR(DecSun1+2)=KalendarskaGodina,MONTH(DecSun1+2)=12),DecSun1+2,\"\"),IF(AND(YEAR(DecSun1+9)=KalendarskaGodina,MONTH(DecSun1+9)=12),DecSun1+9,\"\"))","v":"2022-12-06"},{"$f":"IF(DAY(DecSun1)=1,IF(AND(YEAR(DecSun1+3)=KalendarskaGodina,MONTH(DecSun1+3)=12),DecSun1+3,\"\"),IF(AND(YEAR(DecSun1+10)=KalendarskaGodina,MONTH(DecSun1+10)=12),DecSun1+10,\"\"))","v":"2022-12-07"},{"$f":"IF(DAY(DecSun1)=1,IF(AND(YEAR(DecSun1+4)=KalendarskaGodina,MONTH(DecSun1+4)=12),DecSun1+4,\"\"),IF(AND(YEAR(DecSun1+11)=KalendarskaGodina,MONTH(DecSun1+11)=12),DecSun1+11,\"\"))","v":"2022-12-08"},{"$f":"IF(DAY(DecSun1)=1,IF(AND(YEAR(DecSun1+5)=KalendarskaGodina,MONTH(DecSun1+5)=12),DecSun1+5,\"\"),IF(AND(YEAR(DecSun1+12)=KalendarskaGodina,MONTH(DecSun1+12)=12),DecSun1+12,\"\"))","v":"2022-12-09"},{"$f":"IF(DAY(DecSun1)=1,IF(AND(YEAR(DecSun1+6)=KalendarskaGodina,MONTH(DecSun1+6)=12),DecSun1+6,\"\"),IF(AND(YEAR(DecSun1+13)=KalendarskaGodina,MONTH(DecSun1+13)=12),DecSun1+13,\"\"))","v":"2022-12-10"},{"$f":"IF(DAY(DecSun1)=1,IF(AND(YEAR(DecSun1+7)=KalendarskaGodina,MONTH(DecSun1+7)=12),DecSun1+7,\"\"),IF(AND(YEAR(DecSun1+14)=KalendarskaGodina,MONTH(DecSun1+14)=12),DecSun1+14,\"\"))","v":"2022-12-11"},{"$nulls":3},"Čuvar mesta logotipa nalazi se u ovoj ćeliji."]
[null,null,{"$f":"IF(DAY(NovSun1)=1,IF(AND(YEAR(NovSun1+8)=KalendarskaGodina,MONTH(NovSun1+8)=11),NovSun1+8,\"\"),IF(AND(YEAR(NovSun1+15)=KalendarskaGodina,MONTH(NovSun1+15)=11),NovSun1+15,\"\"))","v":"2022-11-14"},{"$f":"IF(DAY(NovSun1)=1,IF(AND(YEAR(NovSun1+9)=KalendarskaGodina,MONTH(NovSun1+9)=11),NovSun1+9,\"\"),IF(AND(YEAR(NovSun1+16)=KalendarskaGodina,MONTH(NovSun1+16)=11),NovSun1+16,\"\"))","v":"2022-11-15"},{"$f":"IF(DAY(NovSun1)=1,IF(AND(YEAR(NovSun1+10)=KalendarskaGodina,MONTH(NovSun1+10)=11),NovSun1+10,\"\"),IF(AND(YEAR(NovSun1+17)=KalendarskaGodina,MONTH(NovSun1+17)=11),NovSun1+17,\"\"))","v":"2022-11-16"},{"$f":"IF(DAY(NovSun1)=1,IF(AND(YEAR(NovSun1+11)=KalendarskaGodina,MONTH(NovSun1+11)=11),NovSun1+11,\"\"),IF(AND(YEAR(NovSun1+18)=KalendarskaGodina,MONTH(NovSun1+18)=11),NovSun1+18,\"\"))","v":"2022-11-17"},{"$f":"IF(DAY(NovSun1)=1,IF(AND(YEAR(NovSun1+12)=KalendarskaGodina,MONTH(NovSun1+12)=11),NovSun1+12,\"\"),IF(AND(YEAR(NovSun1+19)=KalendarskaGodina,MONTH(NovSun1+19)=11),NovSun1+19,\"\"))","v":"2022-11-18"},{"$f":"IF(DAY(NovSun1)=1,IF(AND(YEAR(NovSun1+13)=KalendarskaGodina,MONTH(NovSun1+13)=11),NovSun1+13,\"\"),IF(AND(YEAR(NovSun1+20)=KalendarskaGodina,MONTH(NovSun1+20)=11),NovSun1+20,\"\"))","v":"2022-11-19"},{"$f":"IF(DAY(NovSun1)=1,IF(AND(YEAR(NovSun1+14)=KalendarskaGodina,MONTH(NovSun1+14)=11),NovSun1+14,\"\"),IF(AND(YEAR(NovSun1+21)=KalendarskaGodina,MONTH(NovSun1+21)=11),NovSun1+21,\"\"))","v":"2022-11-20"},null,{"$f":"IF(DAY(DecSun1)=1,IF(AND(YEAR(DecSun1+8)=KalendarskaGodina,MONTH(DecSun1+8)=12),DecSun1+8,\"\"),IF(AND(YEAR(DecSun1+15)=KalendarskaGodina,MONTH(DecSun1+15)=12),DecSun1+15,\"\"))","v":"2022-12-12"},{"$f":"IF(DAY(DecSun1)=1,IF(AND(YEAR(DecSun1+9)=KalendarskaGodina,MONTH(DecSun1+9)=12),DecSun1+9,\"\"),IF(AND(YEAR(DecSun1+16)=KalendarskaGodina,MONTH(DecSun1+16)=12),DecSun1+16,\"\"))","v":"2022-12-13"},{"$f":"IF(DAY(DecSun1)=1,IF(AND(YEAR(DecSun1+10)=KalendarskaGodina,MONTH(DecSun1+10)=12),DecSun1+10,\"\"),IF(AND(YEAR(DecSun1+17)=KalendarskaGodina,MONTH(DecSun1+17)=12),DecSun1+17,\"\"))","v":"2022-12-14"},{"$f":"IF(DAY(DecSun1)=1,IF(AND(YEAR(DecSun1+11)=KalendarskaGodina,MONTH(DecSun1+11)=12),DecSun1+11,\"\"),IF(AND(YEAR(DecSun1+18)=KalendarskaGodina,MONTH(DecSun1+18)=12),DecSun1+18,\"\"))","v":"2022-12-15"},{"$f":"IF(DAY(DecSun1)=1,IF(AND(YEAR(DecSun1+12)=KalendarskaGodina,MONTH(DecSun1+12)=12),DecSun1+12,\"\"),IF(AND(YEAR(DecSun1+19)=KalendarskaGodina,MONTH(DecSun1+19)=12),DecSun1+19,\"\"))","v":"2022-12-16"},{"$f":"IF(DAY(DecSun1)=1,IF(AND(YEAR(DecSun1+13)=KalendarskaGodina,MONTH(DecSun1+13)=12),DecSun1+13,\"\"),IF(AND(YEAR(DecSun1+20)=KalendarskaGodina,MONTH(DecSun1+20)=12),DecSun1+20,\"\"))","v":"2022-12-17"},{"$f":"IF(DAY(DecSun1)=1,IF(AND(YEAR(DecSun1+14)=KalendarskaGodina,MONTH(DecSun1+14)=12),DecSun1+14,\"\"),IF(AND(YEAR(DecSun1+21)=KalendarskaGodina,MONTH(DecSun1+21)=12),DecSun1+21,\"\"))","v":"2022-12-18"}]
[null,null,{"$f":"IF(DAY(NovSun1)=1,IF(AND(YEAR(NovSun1+15)=KalendarskaGodina,MONTH(NovSun1+15)=11),NovSun1+15,\"\"),IF(AND(YEAR(NovSun1+22)=KalendarskaGodina,MONTH(NovSun1+22)=11),NovSun1+22,\"\"))","v":"2022-11-21"},{"$f":"IF(DAY(NovSun1)=1,IF(AND(YEAR(NovSun1+16)=KalendarskaGodina,MONTH(NovSun1+16)=11),NovSun1+16,\"\"),IF(AND(YEAR(NovSun1+23)=KalendarskaGodina,MONTH(NovSun1+23)=11),NovSun1+23,\"\"))","v":"2022-11-22"},{"$f":"IF(DAY(NovSun1)=1,IF(AND(YEAR(NovSun1+17)=KalendarskaGodina,MONTH(NovSun1+17)=11),NovSun1+17,\"\"),IF(AND(YEAR(NovSun1+24)=KalendarskaGodina,MONTH(NovSun1+24)=11),NovSun1+24,\"\"))","v":"2022-11-23"},{"$f":"IF(DAY(NovSun1)=1,IF(AND(YEAR(NovSun1+18)=KalendarskaGodina,MONTH(NovSun1+18)=11),NovSun1+18,\"\"),IF(AND(YEAR(NovSun1+25)=KalendarskaGodina,MONTH(NovSun1+25)=11),NovSun1+25,\"\"))","v":"2022-11-24"},{"$f":"IF(DAY(NovSun1)=1,IF(AND(YEAR(NovSun1+19)=KalendarskaGodina,MONTH(NovSun1+19)=11),NovSun1+19,\"\"),IF(AND(YEAR(NovSun1+26)=KalendarskaGodina,MONTH(NovSun1+26)=11),NovSun1+26,\"\"))","v":"2022-11-25"},{"$f":"IF(DAY(NovSun1)=1,IF(AND(YEAR(NovSun1+20)=KalendarskaGodina,MONTH(NovSun1+20)=11),NovSun1+20,\"\"),IF(AND(YEAR(NovSun1+27)=KalendarskaGodina,MONTH(NovSun1+27)=11),NovSun1+27,\"\"))","v":"2022-11-26"},{"$f":"IF(DAY(NovSun1)=1,IF(AND(YEAR(NovSun1+21)=KalendarskaGodina,MONTH(NovSun1+21)=11),NovSun1+21,\"\"),IF(AND(YEAR(NovSun1+28)=KalendarskaGodina,MONTH(NovSun1+28)=11),NovSun1+28,\"\"))","v":"2022-11-27"},null,{"$f":"IF(DAY(DecSun1)=1,IF(AND(YEAR(DecSun1+15)=KalendarskaGodina,MONTH(DecSun1+15)=12),DecSun1+15,\"\"),IF(AND(YEAR(DecSun1+22)=KalendarskaGodina,MONTH(DecSun1+22)=12),DecSun1+22,\"\"))","v":"2022-12-19"},{"$f":"IF(DAY(DecSun1)=1,IF(AND(YEAR(DecSun1+16)=KalendarskaGodina,MONTH(DecSun1+16)=12),DecSun1+16,\"\"),IF(AND(YEAR(DecSun1+23)=KalendarskaGodina,MONTH(DecSun1+23)=12),DecSun1+23,\"\"))","v":"2022-12-20"},{"$f":"IF(DAY(DecSun1)=1,IF(AND(YEAR(DecSun1+17)=KalendarskaGodina,MONTH(DecSun1+17)=12),DecSun1+17,\"\"),IF(AND(YEAR(DecSun1+24)=KalendarskaGodina,MONTH(DecSun1+24)=12),DecSun1+24,\"\"))","v":"2022-12-21"},{"$f":"IF(DAY(DecSun1)=1,IF(AND(YEAR(DecSun1+18)=KalendarskaGodina,MONTH(DecSun1+18)=12),DecSun1+18,\"\"),IF(AND(YEAR(DecSun1+25)=KalendarskaGodina,MONTH(DecSun1+25)=12),DecSun1+25,\"\"))","v":"2022-12-22"},{"$f":"IF(DAY(DecSun1)=1,IF(AND(YEAR(DecSun1+19)=KalendarskaGodina,MONTH(DecSun1+19)=12),DecSun1+19,\"\"),IF(AND(YEAR(DecSun1+26)=KalendarskaGodina,MONTH(DecSun1+26)=12),DecSun1+26,\"\"))","v":"2022-12-23"},{"$f":"IF(DAY(DecSun1)=1,IF(AND(YEAR(DecSun1+20)=KalendarskaGodina,MONTH(DecSun1+20)=12),DecSun1+20,\"\"),IF(AND(YEAR(DecSun1+27)=KalendarskaGodina,MONTH(DecSun1+27)=12),DecSun1+27,\"\"))","v":"2022-12-24"},{"$f":"IF(DAY(DecSun1)=1,IF(AND(YEAR(DecSun1+21)=KalendarskaGodina,MONTH(DecSun1+21)=12),DecSun1+21,\"\"),IF(AND(YEAR(DecSun1+28)=KalendarskaGodina,MONTH(DecSun1+28)=12),DecSun1+28,\"\"))","v":"2022-12-25"}]
[null,null,{"$f":"IF(DAY(NovSun1)=1,IF(AND(YEAR(NovSun1+22)=KalendarskaGodina,MONTH(NovSun1+22)=11),NovSun1+22,\"\"),IF(AND(YEAR(NovSun1+29)=KalendarskaGodina,MONTH(NovSun1+29)=11),NovSun1+29,\"\"))","v":"2022-11-28"},{"$f":"IF(DAY(NovSun1)=1,IF(AND(YEAR(NovSun1+23)=KalendarskaGodina,MONTH(NovSun1+23)=11),NovSun1+23,\"\"),IF(AND(YEAR(NovSun1+30)=KalendarskaGodina,MONTH(NovSun1+30)=11),NovSun1+30,\"\"))","v":"2022-11-29"},{"$f":"IF(DAY(NovSun1)=1,IF(AND(YEAR(NovSun1+24)=KalendarskaGodina,MONTH(NovSun1+24)=11),NovSun1+24,\"\"),IF(AND(YEAR(NovSun1+31)=KalendarskaGodina,MONTH(NovSun1+31)=11),NovSun1+31,\"\"))","v":"2022-11-30"},{"$f":"IF(DAY(NovSun1)=1,IF(AND(YEAR(NovSun1+25)=KalendarskaGodina,MONTH(NovSun1+25)=11),NovSun1+25,\"\"),IF(AND(YEAR(NovSun1+32)=KalendarskaGodina,MONTH(NovSun1+32)=11),NovSun1+32,\"\"))","v":""},{"$f":"IF(DAY(NovSun1)=1,IF(AND(YEAR(NovSun1+26)=KalendarskaGodina,MONTH(NovSun1+26)=11),NovSun1+26,\"\"),IF(AND(YEAR(NovSun1+33)=KalendarskaGodina,MONTH(NovSun1+33)=11),NovSun1+33,\"\"))","v":""},{"$f":"IF(DAY(NovSun1)=1,IF(AND(YEAR(NovSun1+27)=KalendarskaGodina,MONTH(NovSun1+27)=11),NovSun1+27,\"\"),IF(AND(YEAR(NovSun1+34)=KalendarskaGodina,MONTH(NovSun1+34)=11),NovSun1+34,\"\"))","v":""},{"$f":"IF(DAY(NovSun1)=1,IF(AND(YEAR(NovSun1+28)=KalendarskaGodina,MONTH(NovSun1+28)=11),NovSun1+28,\"\"),IF(AND(YEAR(NovSun1+35)=KalendarskaGodina,MONTH(NovSun1+35)=11),NovSun1+35,\"\"))","v":""},null,{"$f":"IF(DAY(DecSun1)=1,IF(AND(YEAR(DecSun1+22)=KalendarskaGodina,MONTH(DecSun1+22)=12),DecSun1+22,\"\"),IF(AND(YEAR(DecSun1+29)=KalendarskaGodina,MONTH(DecSun1+29)=12),DecSun1+29,\"\"))","v":"2022-12-26"},{"$f":"IF(DAY(DecSun1)=1,IF(AND(YEAR(DecSun1+23)=KalendarskaGodina,MONTH(DecSun1+23)=12),DecSun1+23,\"\"),IF(AND(YEAR(DecSun1+30)=KalendarskaGodina,MONTH(DecSun1+30)=12),DecSun1+30,\"\"))","v":"2022-12-27"},{"$f":"IF(DAY(DecSun1)=1,IF(AND(YEAR(DecSun1+24)=KalendarskaGodina,MONTH(DecSun1+24)=12),DecSun1+24,\"\"),IF(AND(YEAR(DecSun1+31)=KalendarskaGodina,MONTH(DecSun1+31)=12),DecSun1+31,\"\"))","v":"2022-12-28"},{"$f":"IF(DAY(DecSun1)=1,IF(AND(YEAR(DecSun1+25)=KalendarskaGodina,MONTH(DecSun1+25)=12),DecSun1+25,\"\"),IF(AND(YEAR(DecSun1+32)=KalendarskaGodina,MONTH(DecSun1+32)=12),DecSun1+32,\"\"))","v":"2022-12-29"},{"$f":"IF(DAY(DecSun1)=1,IF(AND(YEAR(DecSun1+26)=KalendarskaGodina,MONTH(DecSun1+26)=12),DecSun1+26,\"\"),IF(AND(YEAR(DecSun1+33)=KalendarskaGodina,MONTH(DecSun1+33)=12),DecSun1+33,\"\"))","v":"2022-12-30"},{"$f":"IF(DAY(DecSun1)=1,IF(AND(YEAR(DecSun1+27)=KalendarskaGodina,MONTH(DecSun1+27)=12),DecSun1+27,\"\"),IF(AND(YEAR(DecSun1+34)=KalendarskaGodina,MONTH(DecSun1+34)=12),DecSun1+34,\"\"))","v":"2022-12-31"},{"$f":"IF(DAY(DecSun1)=1,IF(AND(YEAR(DecSun1+28)=KalendarskaGodina,MONTH(DecSun1+28)=12),DecSun1+28,\"\"),IF(AND(YEAR(DecSun1+35)=KalendarskaGodina,MONTH(DecSun1+35)=12),DecSun1+35,\"\"))","v":""}]
[null,null,{"$f":"IF(DAY(NovSun1)=1,IF(AND(YEAR(NovSun1+29)=KalendarskaGodina,MONTH(NovSun1+29)=11),NovSun1+29,\"\"),IF(AND(YEAR(NovSun1+36)=KalendarskaGodina,MONTH(NovSun1+36)=11),NovSun1+36,\"\"))","v":""},{"$f":"IF(DAY(NovSun1)=1,IF(AND(YEAR(NovSun1+30)=KalendarskaGodina,MONTH(NovSun1+30)=11),NovSun1+30,\"\"),IF(AND(YEAR(NovSun1+37)=KalendarskaGodina,MONTH(NovSun1+37)=11),NovSun1+37,\"\"))","v":""},{"$f":"IF(DAY(NovSun1)=1,IF(AND(YEAR(NovSun1+31)=KalendarskaGodina,MONTH(NovSun1+31)=11),NovSun1+31,\"\"),IF(AND(YEAR(NovSun1+38)=KalendarskaGodina,MONTH(NovSun1+38)=11),NovSun1+38,\"\"))","v":""},{"$f":"IF(DAY(NovSun1)=1,IF(AND(YEAR(NovSun1+32)=KalendarskaGodina,MONTH(NovSun1+32)=11),NovSun1+32,\"\"),IF(AND(YEAR(NovSun1+39)=KalendarskaGodina,MONTH(NovSun1+39)=11),NovSun1+39,\"\"))","v":""},{"$f":"IF(DAY(NovSun1)=1,IF(AND(YEAR(NovSun1+33)=KalendarskaGodina,MONTH(NovSun1+33)=11),NovSun1+33,\"\"),IF(AND(YEAR(NovSun1+40)=KalendarskaGodina,MONTH(NovSun1+40)=11),NovSun1+40,\"\"))","v":""},{"$f":"IF(DAY(NovSun1)=1,IF(AND(YEAR(NovSun1+34)=KalendarskaGodina,MONTH(NovSun1+34)=11),NovSun1+34,\"\"),IF(AND(YEAR(NovSun1+41)=KalendarskaGodina,MONTH(NovSun1+41)=11),NovSun1+41,\"\"))","v":""},{"$f":"IF(DAY(NovSun1)=1,IF(AND(YEAR(NovSun1+35)=KalendarskaGodina,MONTH(NovSun1+35)=11),NovSun1+35,\"\"),IF(AND(YEAR(NovSun1+42)=KalendarskaGodina,MONTH(NovSun1+42)=11),NovSun1+42,\"\"))","v":""},null,{"$f":"IF(DAY(DecSun1)=1,IF(AND(YEAR(DecSun1+29)=KalendarskaGodina,MONTH(DecSun1+29)=12),DecSun1+29,\"\"),IF(AND(YEAR(DecSun1+36)=KalendarskaGodina,MONTH(DecSun1+36)=12),DecSun1+36,\"\"))","v":""},{"$f":"IF(DAY(DecSun1)=1,IF(AND(YEAR(DecSun1+30)=KalendarskaGodina,MONTH(DecSun1+30)=12),DecSun1+30,\"\"),IF(AND(YEAR(DecSun1+37)=KalendarskaGodina,MONTH(DecSun1+37)=12),DecSun1+37,\"\"))","v":""},{"$f":"IF(DAY(DecSun1)=1,IF(AND(YEAR(DecSun1+31)=KalendarskaGodina,MONTH(DecSun1+31)=12),DecSun1+31,\"\"),IF(AND(YEAR(DecSun1+38)=KalendarskaGodina,MONTH(DecSun1+38)=12),DecSun1+38,\"\"))","v":""},{"$f":"IF(DAY(DecSun1)=1,IF(AND(YEAR(DecSun1+32)=KalendarskaGodina,MONTH(DecSun1+32)=12),DecSun1+32,\"\"),IF(AND(YEAR(DecSun1+39)=KalendarskaGodina,MONTH(DecSun1+39)=12),DecSun1+39,\"\"))","v":""},{"$f":"IF(DAY(DecSun1)=1,IF(AND(YEAR(DecSun1+33)=KalendarskaGodina,MONTH(DecSun1+33)=12),DecSun1+33,\"\"),IF(AND(YEAR(DecSun1+40)=KalendarskaGodina,MONTH(DecSun1+40)=12),DecSun1+40,\"\"))","v":""},{"$f":"IF(DAY(DecSun1)=1,IF(AND(YEAR(DecSun1+34)=KalendarskaGodina,MONTH(DecSun1+34)=12),DecSun1+34,\"\"),IF(AND(YEAR(DecSun1+41)=KalendarskaGodina,MONTH(DecSun1+41)=12),DecSun1+41,\"\"))","v":""},{"$f":"IF(DAY(DecSun1)=1,IF(AND(YEAR(DecSun1+35)=KalendarskaGodina,MONTH(DecSun1+35)=12),DecSun1+35,\"\"),IF(AND(YEAR(DecSun1+42)=KalendarskaGodina,MONTH(DecSun1+42)=12),DecSun1+42,\"\"))","v":""}]